Name,Sub Group,Service Area,Expense Type,Narrative,Date,Transaction No,Amount,Supplier Name,Supplier Ref,Period,Year
Allerdale Borough Council,33112,Income,Planning and Development,Planning Fees Income,08/01/2014,42171,97.00,Redacted information - included personal information ,M00366,10,2013
Allerdale Borough Council,33112,Income,Planning and Development,Planning Fees Income,08/01/2014,42172,213.00,Redacted information - included personal information ,M00367,10,2013
Allerdale Borough Council,33113,Income,Building Control - Chargeable,Building Control Fees Income,08/01/2014,42173,90.72,T ARMSTRONG - CONSTRUCTION,C00003,10,2013
Allerdale Borough Council,33112,Income,Planning and Development,Planning Fees Income,08/01/2014,42174,305.00,Redacted information - included personal information ,M00368,10,2013
Allerdale Borough Council,33112,Income,Planning and Development,Planning Fees Income,08/01/2014,42175,385.00,Redacted information - included personal information ,M00369,10,2013
Allerdale Borough Council,15502,Supplies & Services,Legal Services,Land Registry Fees,13/01/2014,42176,77.00,HM LAND REGISTRY,A00505,10,2013
Allerdale Borough Council,15514,Supplies & Services,Mayor's Fund,Public Entertainment,08/01/2014,42194,8.10,P & D NEWSAGENTS,A00237,10,2013
Allerdale Borough Council,15101,Supplies & Services,Carnegie Theatre,Equipment Costs,08/01/2014,42195,40.33,CITY ELECTRICAL FACTORS,A00395,10,2013
Allerdale Borough Council,15501,Supplies & Services,Carnegie Theatre,Consultants Fees,08/01/2014,42196,49.87,CITY ELECTRICAL FACTORS,A00395,10,2013
Allerdale Borough Council,10605,Employee Costs,Training,Travel,08/01/2014,42197,93.29,ENTERPRISE RENT A CAR,A01367,10,2013
Allerdale Borough Council,12405,Premises,Off-street - Owned,Rentals and Lease Charges,08/01/2014,42198,"9,738.59",CAPITA SYMONDS,A01748,10,2013
Allerdale Borough Council,15601,Supplies & Services,Benefits,Postage,08/01/2014,42199,"1,599.51",ROYAL MAIL LETTERS,X00021,10,2013
Allerdale Borough Council,15702,Supplies & Services,Crime Prevention,Line Rentals,08/01/2014,42200,135.81,BRITISH TELECOMMUNICATIONS,X00004,10,2013
Allerdale Borough Council,15703,Supplies & Services,Silloth TIC,Call Charges,08/01/2014,42201,136.54,BRITISH TELECOMMUNICATIONS,X00004,10,2013
Allerdale Borough Council,15202,Supplies & Services,Carnegie Theatre,Bar Provision,08/01/2014,42202,115.53,G & M SUPPLIES,A00033,10,2013
Allerdale Borough Council,15101,Supplies & Services,Carnegie Theatre,Equipment Costs,08/01/2014,42203,697.60,JUTIC.CO.UK,A00089,10,2013
Allerdale Borough Council,15101,Supplies & Services,Carnegie Theatre,Equipment Costs,08/01/2014,42204,420.40,MICO LIGHTING LTD,A00200,10,2013
Allerdale Borough Council,12103,Premises,Coastal Protection and Inland Flooding,Grounds Maintenance,08/01/2014,42205,98.00,FIRTH FABRICATION SERVICES,C00020,10,2013
Allerdale Borough Council,51101,Capital Expenditure,Workington Hall Repairs,External Contractor Payments (Capital),08/01/2014,42206,"5,594.50",MOSEDALE GILLATT,A01020,10,2013
Allerdale Borough Council,15405,Supplies & Services,Communications and Marketing,Use of External Printers,08/01/2014,42207,"4,267.00",FIRPRESS PRINTERS,A00063,10,2013
Allerdale Borough Council,15404,Supplies & Services,Legal Services,Reference Materials,15/01/2014,42208,239.00,SWEET & MAXWELL (THOMSON REUTERS),A00028,10,2013
Allerdale Borough Council,12301,Premises,Corporate Property,Security,08/01/2014,42209,911.00,PRO-TEC SYSTEMS,C00026,10,2013
Allerdale Borough Council,85402,Balance Sheet,Community Safety,Reserves - Community Safety Partnership,08/01/2014,42210,"1,025.00",TOTAL MERCHANDISE LTD,A01932,10,2013
Allerdale Borough Council,15500,Supplies & Services,Food and Occupational Health,Budget-Services,08/01/2014,42211,235.00,MP MARINE LTD,A00113,10,2013
Allerdale Borough Council,10602,Employee Costs,Training,Post Entry Training,08/01/2014,42212,151.00,CIPFA,A00572,10,2013
Allerdale Borough Council,15101,Supplies & Services,Licensing Service,Equipment Costs,15/01/2014,42213,128.23,PROBRAND,A00040,10,2013
Allerdale Borough Council,15506,Supplies & Services,Localities & Partnerships,Professional Services,15/01/2014,42214,"2,170.00",VOLUNTARY ACTION CUMBRIA,A01518,10,2013
Allerdale Borough Council,15501,Supplies & Services,Environmental Protection,Consultants Fees,15/01/2014,42215,621.00,UNITED UTILITIES PLC,A01657,10,2013
Allerdale Borough Council,33121,Income,Off-street - Owned,Excess Charges - Car Parks Income,08/01/2014,42216,50.00,ALPHABET (GB) LIMITED,M00370,10,2013
Allerdale Borough Council,12306,Premises,Industrial Units,Legionella Inspections and Services,08/01/2014,42217,595.00,RENTOKIL INITIAL UK LTD - WATERSAFE,A01790,10,2013
Allerdale Borough Council,15501,Supplies & Services,Environmental Protection,Consultants Fees,15/01/2014,42218,682.50,Redacted information - included personal information ,A00206,10,2013
Allerdale Borough Council,10604,Employee Costs,Chief Executive,Hire of Training Rooms/Venues,08/01/2014,42219,213.00,CARLISLE LEISURE LTD,A00136,10,2013
Allerdale Borough Council,15401,Supplies & Services,Solway Coast AONB Core Funding,General Stationery,08/01/2014,42220,84.85,VIKING DIRECT,A00828,10,2013
Allerdale Borough Council,10401,Employee Costs,Licensing Pay Group,Agency Staff Costs,08/01/2014,42221,384.00,VENN GROUP,A01836,10,2013
Allerdale Borough Council,15550,Supplies & Services,Carnegie Theatre,General-Service Related Fees,08/01/2014,42222,24.60,TICKETS.COM LTD,A00371,10,2013
Allerdale Borough Council,10401,Employee Costs,Licensing Pay Group,Agency Staff Costs,08/01/2014,42223,324.00,ADECCO RECRUITMENT,A00188,10,2013
Allerdale Borough Council,15811,Supplies & Services,Shared IT Services,Software Maintenance,08/01/2014,42224,330.70,MIDLAND SOFTWARE LTD,A00296,10,2013
Allerdale Borough Council,14101,,Shared IT Services Pay Group,Vehicle Leasing,12/02/2014,42225,189.00,ARNOLD CLARK FINANCE LIMITED,A01781,10,2013
Allerdale Borough Council,15802,Supplies & Services,Shared IT Services,Hardware Maintenance,15/01/2014,42226,"3,503.39",NETCENTRIX LIMITED,A00106,10,2013
Allerdale Borough Council,15550,Supplies & Services,Carnegie Theatre,General-Service Related Fees,08/01/2014,42227,10.00,TRANSACTION NETWORK SERVICES (UK) LTD,A01778,10,2013
Allerdale Borough Council,15550,Supplies & Services,Carnegie Theatre,General-Service Related Fees,15/01/2014,42228,27.88,TICKETS.COM LTD,A00371,10,2013
Allerdale Borough Council,15202,Supplies & Services,Carnegie Theatre,Bar Provision,08/01/2014,42229,21.89,SOLWAY HEATERS LTD,A00305,10,2013
Allerdale Borough Council,10401,Employee Costs,Licensing Pay Group,Agency Staff Costs,08/01/2014,42230,399.60,ADECCO RECRUITMENT,A00188,10,2013
Allerdale Borough Council,16150,Supplies & Services,Solway Wetlands Project,General Promotions,15/01/2014,42231,"1,025.00",COUNTRYSCAPE,A01864,10,2013
Allerdale Borough Council,15503,Supplies & Services,Legal Services,Court and Tribunal Costs,08/01/2014,42232,70.00,HMCTS,A01237,10,2013
Allerdale Borough Council,15501,Supplies & Services,Planning and Development,Consultants Fees,08/01/2014,42233,450.00,CAPITA (TREE/HEDGEROWS),A00683,10,2013
Allerdale Borough Council,15501,Supplies & Services,Planning and Development,Consultants Fees,08/01/2014,42234,"1,000.00",KEPPIE MASSIE,A01574,10,2013
Allerdale Borough Council,20150,Third Party Payments,Footways,General Partnership Service Fees,08/01/2014,42235,260.00,Redacted information - included personal information ,A00242,10,2013
Allerdale Borough Council,15508,Supplies & Services,Corporate Improvement Team,Subscriptions,29/01/2014,42236,"2,050.00",LOCAL INFORMATION UNIT LTD,A01881,10,2013
Allerdale Borough Council,12302,Premises,Carnegie Theatre,Building Cleaning,08/01/2014,42237,151.02,CATERITE FOOD & WINE SERVICE,A00210,10,2013
Allerdale Borough Council,16150,Supplies & Services,Solway Wetlands Project,General Promotions,08/01/2014,42238,250.00,STEVE BLAKE PHOTOGRAPHY,A01930,10,2013
Allerdale Borough Council,15503,Supplies & Services,Legal Services,Court and Tribunal Costs,08/01/2014,42239,145.00,HMCTS ,A01237,10,2013
Allerdale Borough Council,12306,Premises,Public Convenience Cleaning,Legionella Inspections and Services,15/01/2014,42240,545.00,RENTOKIL INITIAL UK LTD - WATERSAFE,A01790,10,2013
Allerdale Borough Council,14104,,Parking Services Pay Group,Repairs & Maintenance,15/01/2014,42241,455.00,PARKING INFRASTRUCTRUE SERVICES UK,A01343,10,2013
Allerdale Borough Council,20102,Third Party Payments,Recycling,Horticulture (Obsolete),08/01/2014,42242,"3,247.72",FCC RECYCLING (UK) LTD (ALCO),A00185,10,2013
Allerdale Borough Council,15202,Supplies & Services,Carnegie Theatre,Bar Provision,08/01/2014,42243,126.32,GRAPEVINE WINE SERVICE,A00295,10,2013
Allerdale Borough Council,12302,Premises,Carnegie Theatre,Building Cleaning,08/01/2014,42244,268.00,FCC RECYCLING (UK) LTD (ALCO),A00185,10,2013
Allerdale Borough Council,12302,Premises,Carnegie Theatre,Building Cleaning,08/01/2014,42245,268.00,FCC RECYCLING (UK) LTD (ALCO),A00185,10,2013
Allerdale Borough Council,15702,Supplies & Services,Street Cleansing,Line Rentals,08/01/2014,42246,48.26,BRITISH TELECOMMUNICATIONS,X00004,10,2013
Allerdale Borough Council,15502,Supplies & Services,Legal Services,Land Registry Fees,13/01/2014,42247,28.00,HM LAND REGISTRY,A00505,10,2013
Allerdale Borough Council,14202,,Members Services,Hire Car and petrol,08/01/2014,42248,120.00,KEN ROUTLEDGE TRAVEL LTD,A00192,10,2013
Allerdale Borough Council,51101,Capital Expenditure,KMAG Enhancement Project,External Contractor Payments (Capital),08/01/2014,42249,665.00,BOX CLEVER STORAGE,A00880,10,2013
Allerdale Borough Council,16003,Supplies & Services,Customer Services Pay Group,Security of Cash Movements,29/01/2014,42250,"1,106.45",SECURITY PLUS LIMITED,A00503,10,2013
Allerdale Borough Council,15401,Supplies & Services,Document Management Pay Group,General Stationery,29/01/2014,42251,82.60,LYRECO,A00043,10,2013
Allerdale Borough Council,20305,Third Party Payments,Sports & Leisure Centres,Contract Services-Leisure Centres,08/01/2014,42252,"49,232.94",CARLISLE LEISURE LTD,A00136,10,2013
Allerdale Borough Council,15401,Supplies & Services,Document Management Pay Group,General Stationery,29/01/2014,42253,37.94,LYRECO,A00043,10,2013
Allerdale Borough Council,15401,Supplies & Services,Document Management Pay Group,General Stationery,29/01/2014,42254,27.07,LYRECO,A00043,10,2013
Allerdale Borough Council,15401,Supplies & Services,Document Management Pay Group,General Stationery,29/01/2014,42255,319.95,LYRECO,A00043,10,2013
Allerdale Borough Council,12103,Premises,Parks Development,Grounds Maintenance,15/01/2014,42256,174.44,ALL PLAY IRELAND LTD,C00135,10,2013
Allerdale Borough Council,20305,Third Party Payments,Maryport Wave,Contract Services-Leisure Centres,08/01/2014,42257,"16,427.20",CARLISLE LEISURE LTD,A00136,10,2013
Allerdale Borough Council,14105,,Animal Welfare,"Fuel, Lubricants & Consumables",08/01/2014,42258,9.40,HI-Q TYRESERVICES,A00313,10,2013
Allerdale Borough Council,20150,Third Party Payments,Police & Crime Commissioner,General Partnership Service Fees,08/01/2014,42259,240.00,SAFE AND SOUND SECURITY (CUMBRIA) LTD,A01831,10,2013
Allerdale Borough Council,20150,Third Party Payments,Police & Crime Commissioner,General Partnership Service Fees,08/01/2014,42260,240.00,SAFE AND SOUND SECURITY (CUMBRIA) LTD,A01831,10,2013
Allerdale Borough Council,20150,Third Party Payments,Police & Crime Commissioner,General Partnership Service Fees,08/01/2014,42261,240.00,SAFE AND SOUND SECURITY (CUMBRIA) LTD,A01831,10,2013
Allerdale Borough Council,20150,Third Party Payments,Police & Crime Commissioner,General Partnership Service Fees,08/01/2014,42262,240.00,SAFE AND SOUND SECURITY (CUMBRIA) LTD,A01831,10,2013
Allerdale Borough Council,20150,Third Party Payments,Police & Crime Commissioner,General Partnership Service Fees,08/01/2014,42263,240.00,SAFE AND SOUND SECURITY (CUMBRIA) LTD,A01831,10,2013
Allerdale Borough Council,20150,Third Party Payments,Police & Crime Commissioner,General Partnership Service Fees,08/01/2014,42264,240.00,SAFE AND SOUND SECURITY (CUMBRIA) LTD,A01831,10,2013
Allerdale Borough Council,20150,Third Party Payments,Police & Crime Commissioner,General Partnership Service Fees,08/01/2014,42265,240.00,SAFE AND SOUND SECURITY (CUMBRIA) LTD,A01831,10,2013
Allerdale Borough Council,15104,Supplies & Services,Trade Waste,Supplies for Resale,15/01/2014,42266,"2,250.00",EGBERT H TAYLOR & COMPANY LTD,A01706,10,2013
Allerdale Borough Council,20150,Third Party Payments,Police & Crime Commissioner,General Partnership Service Fees,29/01/2014,42267,240.00,SAFE AND SOUND SECURITY (CUMBRIA) LTD,A01831,10,2013
Allerdale Borough Council,20150,Third Party Payments,Police & Crime Commissioner,General Partnership Service Fees,22/01/2014,42268,240.00,SAFE AND SOUND SECURITY (CUMBRIA) LTD,A01831,10,2013
Allerdale Borough Council,20150,Third Party Payments,Police & Crime Commissioner,General Partnership Service Fees,08/01/2014,42269,240.00,SAFE AND SOUND SECURITY (CUMBRIA) LTD,A01831,10,2013
Allerdale Borough Council,20150,Third Party Payments,Police & Crime Commissioner,General Partnership Service Fees,08/01/2014,42270,240.00,SAFE AND SOUND SECURITY (CUMBRIA) LTD,A01831,10,2013
Allerdale Borough Council,20150,Third Party Payments,Police & Crime Commissioner,General Partnership Service Fees,08/01/2014,42271,240.00,SAFE AND SOUND SECURITY (CUMBRIA) LTD,A01831,10,2013
Allerdale Borough Council,20150,Third Party Payments,Police & Crime Commissioner,General Partnership Service Fees,08/01/2014,42272,240.00,SAFE AND SOUND SECURITY (CUMBRIA) LTD,A01831,10,2013
Allerdale Borough Council,12103,Premises,Parks and Grounds Maintenance,Grounds Maintenance,22/01/2014,42273,157.27,ASTSIGNS LIMITED,A01473,10,2013
Allerdale Borough Council,14150,,Gates Travel,General-Council Vehicles (Non-Capital),29/01/2014,42274,"1,597.00",GATES TRAVEL,A01525,10,2013
Allerdale Borough Council,15501,Supplies & Services,Local Development Framework,Consultants Fees,05/02/2014,42275,"1,286.00",PROGRAMME OFFICER SOLUTIONS LTD,A01852,10,2013
Allerdale Borough Council,15202,Supplies & Services,Carnegie Theatre,Bar Provision,08/01/2014,42276,11.84,SOLWAY HEATERS LTD,A00305,10,2013
Allerdale Borough Council,15401,Supplies & Services,Document Management Pay Group,General Stationery,29/01/2014,42277,35.96,LYRECO,A00043,10,2013
Allerdale Borough Council,15401,Supplies & Services,Document Management Pay Group,General Stationery,29/01/2014,42278,130.61,LYRECO,A00043,10,2013
Allerdale Borough Council,15401,Supplies & Services,Document Management Pay Group,General Stationery,29/01/2014,42279,104.35,LYRECO,A00043,10,2013
Allerdale Borough Council,15401,Supplies & Services,Document Management Pay Group,General Stationery,29/01/2014,42280,48.48,LYRECO,A00043,10,2013
Allerdale Borough Council,15401,Supplies & Services,Document Management Pay Group,General Stationery,29/01/2014,42281,131.66,LYRECO,A00043,10,2013
Allerdale Borough Council,73102,Holding and Control Accounts,Busy Bees Childcare Scheme,Holding Accounts General - Expenditure,15/01/2014,42282,926.00,COMPUTERSHARE VOUCHER SERVICES,A00991,10,2013
Allerdale Borough Council,20150,Third Party Payments,Police & Crime Commissioner,General Partnership Service Fees,08/01/2014,42283,224.00,SAFE AND SOUND SECURITY (CUMBRIA) LTD,A01831,10,2013
Allerdale Borough Council,73102,Holding and Control Accounts,Capital Project Retentions,Holding Accounts General - Expenditure,08/01/2014,42284,"4,915.97",T ARMSTRONG - CONSTRUCTION,C00003,10,2013
Allerdale Borough Council,10502,Employee Costs,Corporate Recruitment,Interview Expenses,08/01/2014,42285,56.20,Redacted information - included personal information ,M00372,10,2013
Allerdale Borough Council,15505,Supplies & Services,Licensing Service,Licences,08/01/2014,42286,470.00,Redacted information - included personal information ,M00371,10,2013
Allerdale Borough Council,21150,Transfer Payments,Section 106 Town & Country Plan Act 1990,General Grants,08/01/2014,42287,"30,000.00",WIGTON TOWN COUNCIL,X00099,10,2013
Allerdale Borough Council,33150,Income,Credit Union,Other Fees Income,08/01/2014,42288,598.00,THE ALLERDALE CREDIT UNION,A00493,10,2013
Allerdale Borough Council,73102,Holding and Control Accounts,Busy Bees Childcare Scheme,Holding Accounts General - Expenditure,15/01/2014,42289,50.93,COMPUTERSHARE VOUCHER SERVICES,A00991,10,2013
Allerdale Borough Council,12402,Premises,Corporate Property,Electricity,15/01/2014,42290,23.81,N POWER ,X00015,10,2013
Allerdale Borough Council,12402,Premises,Other Land & Buildings,Electricity,15/01/2014,42291,10.30,N POWER ,X00015,10,2013
Allerdale Borough Council,15704,Supplies & Services,Shared IT Services,Mobile Phones,15/01/2014,42292,"1,181.68",VODAFONE,A00551,10,2013
Allerdale Borough Council,12402,Premises,Public Convenience Cleaning,Electricity,15/01/2014,42293,4.76,N POWER,X00015,10,2013
Allerdale Borough Council,12402,Premises,Car Parks Inspection & Maintenance,Electricity,15/01/2014,42294,19.91,N POWER,X00015,10,2013
Allerdale Borough Council,12402,Premises,Tenanted Properties,Electricity,15/01/2014,42295,51.68,N POWER,X00015,10,2013
Allerdale Borough Council,12402,Premises,Public Convenience Cleaning,Electricity,15/01/2014,42296,23.46,N POWER,X00015,10,2013
Allerdale Borough Council,12402,Premises,Public Convenience Cleaning,Electricity,15/01/2014,42297,258.84,N POWER,X00015,10,2013
Allerdale Borough Council,12402,Premises,Tenanted Properties,Electricity,15/01/2014,42298,440.73,N POWER,X00015,10,2013
Allerdale Borough Council,12402,Premises,Other Land & Buildings,Electricity,15/01/2014,42299,5.79,N POWER,X00015,10,2013
Allerdale Borough Council,12402,Premises,Corporate Property,Electricity,15/01/2014,42300,5.04,N POWER,X00015,10,2013
Allerdale Borough Council,15703,Supplies & Services,Shared IT Services,Call Charges,05/02/2014,42301,555.17,VODAFONE (PREV CABLE & WIRELESS),A00934,10,2013
Allerdale Borough Council,15604,Supplies & Services,Document Management Pay Group,Franking Machine refills,15/01/2014,42302,40.00,ROYAL MAIL LETTERS,X00021,10,2013
Allerdale Borough Council,15601,Supplies & Services,Environmental Services Pay Group,Postage,15/01/2014,42303,200.00,ROYAL MAIL LETTERS,X00021,10,2013
Allerdale Borough Council,15505,Supplies & Services,Licensing Service,Licences,15/01/2014,42304,731.80,NEWAUTO LTD T/A MOGO,A00303,10,2013
Allerdale Borough Council,15510,Supplies & Services,Confidential Waste,Disposal of Waste,15/01/2014,42305,95.00,PW CONF BUS SERVICES,A01846,10,2013
Allerdale Borough Council,15509,Supplies & Services,Elections,Election Costs,15/01/2014,42306,303.00,HMRC CUMBERNAULD,A00475,10,2013
Allerdale Borough Council,15506,Supplies & Services,Legal Services,Professional Services,15/01/2014,42307,"3,596.00",BOND DICKINSON LLP,A01933,10,2013
Allerdale Borough Council,15101,Supplies & Services,Animal Welfare,Equipment Costs,15/01/2014,42308,637.20,BROXAP LIMITED,C00048,10,2013
Allerdale Borough Council,73102,Holding and Control Accounts,Allerdale House Tea Fund,Holding Accounts General - Expenditure,15/01/2014,42309,114.00,TELK LTD,A01670,10,2013
Allerdale Borough Council,12101,Premises,Other Land & Buildings,External Maintenance & Decoration,15/01/2014,42310,145.00,THE CUMBRIA CLOCK CO LTD,A00061,10,2013
Allerdale Borough Council,15808,Supplies & Services,Document Management Pay Group,Computer Consumables,29/01/2014,42311,115.52,LYRECO,A00043,10,2013
Allerdale Borough Council,12201,Premises,Corporate Property,Internal Maintenance,15/01/2014,42312,248.00,REFRIGERATION (MITTON) LTD,C00012,10,2013
Allerdale Borough Council,15501,Supplies & Services,Human Resources Pay Group,Consultants Fees,15/01/2014,42313,150.00,BURNETTS SOLICITORS,A00129,10,2013
Allerdale Borough Council,15500,Supplies & Services,Food and Occupational Health,Budget-Services,15/01/2014,42314,95.69,PUBLIC HEALTH ENGLAND,A01839,10,2013
Allerdale Borough Council,15501,Supplies & Services,Food and Occupational Health,Consultants Fees,15/01/2014,42315,71.33,BEACON VETERINARY CENTRE,A00708,10,2013
Allerdale Borough Council,20102,Third Party Payments,Recycling,Horticulture (Obsolete),15/01/2014,42316,378.00,FCC RECYCLING (UK) LTD (ALCO),A00185,10,2013
Allerdale Borough Council,15506,Supplies & Services,Legal Services,Professional Services,22/01/2014,42317,210.00,LOCKMATES,A01939,10,2013
Allerdale Borough Council,15503,Supplies & Services,Legal Services,Court and Tribunal Costs,15/01/2014,42318,70.00,HMCTS,A01237,10,2013
Allerdale Borough Council,15506,Supplies & Services,Legal Services,Professional Services,15/01/2014,42319,205.00,HYDE HARRINGTON CHARTERED SURVEYORS,A01358,10,2013
Allerdale Borough Council,20102,Third Party Payments,Recycling,Horticulture (Obsolete),15/01/2014,42320,362.88,FCC RECYCLING (UK) LTD (ALCO),A00185,10,2013
Allerdale Borough Council,15506,Supplies & Services,Rugby World Cup,Professional Services,15/01/2014,42321,"1,097.57",SOUNDWAVE,A00998,10,2013
Allerdale Borough Council,15101,Supplies & Services,Animal Welfare,Equipment Costs,15/01/2014,42322,410.80,Redacted information - included personal information ,A00176,10,2013
Allerdale Borough Council,15101,Supplies & Services,Animal Welfare,Equipment Costs,15/01/2014,42323,84.00,Redacted information - included personal information ,A00176,10,2013
Allerdale Borough Council,14105,,Parking Services Pay Group,"Fuel, Lubricants & Consumables",,42325,612.60,BP OIL UK LTD,X00022,10,2013
Allerdale Borough Council,15104,Supplies & Services,Bereavement Services,Supplies for Resale,15/01/2014,42326,102.00,GRANART,A00644,10,2013
Allerdale Borough Council,16150,Supplies & Services,KMAG Enhancement Activity,General Promotions,15/01/2014,42327,"1,000.00",CUMBRIA'S LIVING HERITAGE,A01943,10,2013
Allerdale Borough Council,16150,Supplies & Services,Sports Development,General Promotions,15/01/2014,42328,"1,152.00",WIGTON BATHS,A00287,10,2013
Allerdale Borough Council,15506,Supplies & Services,Rugby World Cup,Professional Services,15/01/2014,42329,"4,000.00",ROSEHILL ARTS TRUST LTD,A01372,10,2013
Allerdale Borough Council,15506,Supplies & Services,Legal Services,Professional Services,15/01/2014,42330,318.75,SOUTH LAKELAND DISTRICT COUNCIL,A00569,10,2013
Allerdale Borough Council,16101,Supplies & Services,Planning and Development,Statutory Notices,15/01/2014,42331,320.52,CUMBRIA CC - 3C STUDIO,A00070,10,2013
Allerdale Borough Council,10202,Employee Costs,Human Resources Pay Group,Medical Screening,15/01/2014,42332,32.96,WELLWORK LTD,A00029,10,2013
Allerdale Borough Council,15550,Supplies & Services,Parks and Grounds Maintenance,General-Service Related Fees,15/01/2014,42333,"1,820.00",DUNLOP PLAYGROUND SERVICES,A00511,10,2013
Allerdale Borough Council,12305,Premises,Other Land & Buildings,Inspections and Services,15/01/2014,42334,60.00,PFK PLC LAND AGENCY,A00954,10,2013
Allerdale Borough Council,20101,Third Party Payments,Public Convenience Cleaning,Cleansing Contract,22/01/2014,42335,200.00,J STRONG & SON,A00209,10,2013
Allerdale Borough Council,51101,Capital Expenditure,Stage 1 & 2 Inst of Biomass Plant AHouse,External Contractor Payments (Capital),22/01/2014,42336,"7,000.00",WESTLAKES ENGINEERING LTD,A01835,10,2013
Allerdale Borough Council,15505,Supplies & Services,Planning and Development,Licences,29/01/2014,42337,52.00,CENTREMAPS,A00512,10,2013
Allerdale Borough Council,16350,Supplies & Services,Localities & Partnerships,Miscellaneous Expenses,05/02/2014,42338,85.00,NORTH WEST EMPLOYERS,A00139,10,2013
Allerdale Borough Council,12101,Premises,Car Parks Inspection & Maintenance,External Maintenance & Decoration,15/01/2014,42339,140.00,UNBLOCK CUMBRIA LTD,C00005,10,2013
Allerdale Borough Council,15101,Supplies & Services,Public Convenience Cleaning,Equipment Costs,05/02/2014,42340,64.68,WF HYGIENE & CLEANING SUPPLIES,A01794,10,2013
Allerdale Borough Council,16150,Supplies & Services,Solway Wetlands Project,General Promotions,15/01/2014,42341,80.00,Redacted information - included personal information ,M00203,10,2013
Allerdale Borough Council,15601,Supplies & Services,Elections,Postage,15/01/2014,42342,240.64,ROYAL MAIL LETTERS,X00021,10,2013
Allerdale Borough Council,15602,Supplies & Services,Electoral Registration,Business Reply Licences,15/01/2014,42343,"1,269.00",ROYAL MAIL LETTERS,X00021,10,2013
Allerdale Borough Council,15602,Supplies & Services,Elections,Business Reply Licences,15/01/2014,42344,115.56,ROYAL MAIL LETTERS,X00021,10,2013
Allerdale Borough Council,12402,Premises,Corporate Property,Electricity,15/01/2014,42345,237.02,N POWER,X00015,10,2013
Allerdale Borough Council,15813,Supplies & Services,Shared IT Services,Software Miscellaneous,29/01/2014,42346,50.00,VODAFONE (PREV CABLE & WIRELESS),A00934,10,2013
Allerdale Borough Council,15703,Supplies & Services,Silloth TIC,Call Charges,15/01/2014,42347,56.37,BRITISH TELECOMMUNICATIONS,X00004,10,2013
Allerdale Borough Council,15804,Supplies & Services,Shared IT Services,Computer Data Lines B.T.,29/01/2014,42348,"3,027.45",VODAFONE (PREV CABLE & WIRELESS),A00934,10,2013
Allerdale Borough Council,12402,Premises,Tenanted Properties,Electricity,15/01/2014,42349,16.04,EON,X00016,10,2013
Allerdale Borough Council,15506,Supplies & Services,Communications and Marketing,Professional Services,15/01/2014,42350,600.00,ELSWORTH COMMUNICATIONS,A01869,10,2013
Allerdale Borough Council,12101,Premises,Corporate Property,External Maintenance & Decoration,22/01/2014,42351,"1,500.00",DAY CUMMINS LIMITED,A00131,10,2013
Allerdale Borough Council,52106,Capital Expenditure,Curwen Landslip,Consultants Fees (Capital),15/01/2014,42352,"1,300.00",WYG ENGINEERING LTD,A00155,10,2013
Allerdale Borough Council,15803,Supplies & Services,Shared IT Services,Hardware Purchase,05/02/2014,42353,174.70,KELWAY UK LTD,A00771,10,2013
Allerdale Borough Council,15402,Supplies & Services,Multi-functional Printers,Photocopier Charges,15/01/2014,42354,"7,543.22",KONICA MINOLTA BUSINESS SOLUTIONS UK LTD,A01556,10,2013
Allerdale Borough Council,16150,Supplies & Services,Anti-poverty,General Promotions,15/01/2014,42355,160.00,FIRPRESS PRINTERS,A00063,10,2013
Allerdale Borough Council,16150,Supplies & Services,Anti-poverty,General Promotions,15/01/2014,42356,20.00,FIRPRESS PRINTERS,A00063,10,2013
Allerdale Borough Council,15405,Supplies & Services,Electoral Registration,Use of External Printers,15/01/2014,42357,888.55,PRINT IMAGE NETWORK LIMITED,A01127,10,2013
Allerdale Borough Council,16350,Supplies & Services,Localities & Partnerships,Miscellaneous Expenses,15/01/2014,42358,84.98,EILBECK RENTAL,A01161,10,2013
Allerdale Borough Council,16101,Supplies & Services,Planning and Development,Statutory Notices,15/01/2014,42359,412.17,CUMBRIA CC - 3C STUDIO,A00070,10,2013
Allerdale Borough Council,14200,,Chief Executive,Budget-Travel,15/01/2014,42360,127.14,ENTERPRISE RENT A CAR,A01367,10,2013
Allerdale Borough Council,15601,Supplies & Services,Revenue,Postage,15/01/2014,42361,300.00,ROYAL MAIL LETTERS,X00021,10,2013
Allerdale Borough Council,12403,Premises,Corporate Property,Gas,15/01/2014,42362,489.36,BRITISH GAS,X00006,10,2013
Allerdale Borough Council,12403,Premises,Corporate Property,Gas,15/01/2014,42363,580.14,BRITISH GAS,X00006,10,2013
Allerdale Borough Council,12403,Premises,Corporate Property,Gas,15/01/2014,42364,525.93,BRITISH GAS,X00006,10,2013
Allerdale Borough Council,12408,Premises,Corporate Property,Water & Sewage,15/01/2014,42365,0.47,UNITED UTILITIES,X00011,10,2013
Allerdale Borough Council,12403,Premises,Corporate Property,Gas,15/01/2014,42366,465.53,BRITISH GAS,X00006,10,2013
Allerdale Borough Council,12403,Premises,Corporate Property,Gas,15/01/2014,42367,666.01,BRITISH GAS,X00006,10,2013
Allerdale Borough Council,12403,Premises,Corporate Property,Gas,15/01/2014,42368,345.85,BRITISH GAS,X00006,10,2013
Allerdale Borough Council,12403,Premises,Corporate Property,Gas,15/01/2014,42369,76.28,BRITISH GAS,X00006,10,2013
Allerdale Borough Council,15502,Supplies & Services,Legal Services,Land Registry Fees,15/01/2014,42370,59.00,HM LAND REGISTRY,A00505,10,2013
Allerdale Borough Council,15502,Supplies & Services,Legal Services,Land Registry Fees,14/01/2014,42371,9.00,HM LAND REGISTRY,A00505,10,2013
Allerdale Borough Council,15812,Supplies & Services,Shared IT Services,Software Development,,42372,231.07,HSBC CARD SERVICES,X00000,10,2013
Allerdale Borough Council,15501,Supplies & Services,IT - New Initiatives,Consultants Fees,15/01/2014,42373,850.00,MAYRISE LTD (YOTTA),A00382,10,2013
Allerdale Borough Council,10601,Employee Costs,Electoral Registration,External Courses & Seminar Fees,29/01/2014,42374,236.00,ASSOCIATION OF ELECTORAL ADMIN,A00189,10,2013
Allerdale Borough Council,15101,Supplies & Services,Corporate Property,Equipment Costs,15/01/2014,42375,144.24,CENTRIC OFFICE SOLUTIONS,A00065,10,2013
Allerdale Borough Council,15401,Supplies & Services,Document Management Pay Group,General Stationery,29/01/2014,42376,303.89,LYRECO,A00043,10,2013
Allerdale Borough Council,15550,Supplies & Services,Out of Hours Telephones,General-Service Related Fees,29/01/2014,42377,19.80,SITEXORBIS LIMITED,A00679,10,2013
Allerdale Borough Council,12203,Premises,Public Convenience Cleaning,Plumbing and Heating Maintenance,15/01/2014,42378,"1,236.00",Redacted information - included personal information ,C00008,10,2013
Allerdale Borough Council,15405,Supplies & Services,Customer & Transformation Programme,Use of External Printers,22/01/2014,42379,30.00,FIRPRESS PRINTERS,A00063,10,2013
Allerdale Borough Council,12103,Premises,Parks and Grounds Maintenance,Grounds Maintenance,05/02/2014,42380,"1,100.00",AMBLESIDE TREE SERVICES LTD,C00136,10,2013
Allerdale Borough Council,16150,Supplies & Services,Solway Wetlands Project,General Promotions,15/01/2014,42381,"1,025.00",THE GRINNIGOGS,A01921,10,2013
Allerdale Borough Council,10401,Employee Costs,Head of Governance,Agency Staff Costs,29/01/2014,42382,"1,216.00",Redacted information - included personal information ,A01856,10,2013
Allerdale Borough Council,10401,Employee Costs,Head of Governance,Agency Staff Costs,29/01/2014,42383,988.00,Redacted information - included personal information ,A01856,10,2013
Allerdale Borough Council,20102,Third Party Payments,Recycling,Horticulture (Obsolete),15/01/2014,42384,27.00,THOMPSONS PLANT HIRE LTD,A00262,10,2013
Allerdale Borough Council,15604,Supplies & Services,Document Management Pay Group,Franking Machine refills,15/01/2014,42385,"5,000.00",FP TELESET,A00428,10,2013
Allerdale Borough Council,10401,Employee Costs,Head of Governance,Agency Staff Costs,29/01/2014,42386,"1,216.00",Redacted information - included personal information ,A01856,10,2013
Allerdale Borough Council,15603,Supplies & Services,Document Management Pay Group,Franking Machine Costs,29/01/2014,42387,300.00,FP EXECUTIVE AGENCY LTD,A00733,10,2013
Allerdale Borough Council,15501,Supplies & Services,Food and Occupational Health,Consultants Fees,29/01/2014,42388,67.50,CAPITA TRANSLATION & INTERPRETING,A01749,10,2013
Allerdale Borough Council,15501,Supplies & Services,Environmental Protection,Consultants Fees,22/01/2014,42389,568.75,OSBORNE RICHARDSON,A00206,10,2013
Allerdale Borough Council,14105,,Parking Services Pay Group,"Fuel, Lubricants & Consumables",,42390,482.39,BP OIL UK LTD,X00022,10,2013
Allerdale Borough Council,14105,,Solway Coast AONB Core Funding,"Fuel, Lubricants & Consumables",,42391,532.84,BP OIL UK LTD,X00022,10,2013
Allerdale Borough Council,14105,,Parking Services Pay Group,"Fuel, Lubricants & Consumables",,42392,450.39,BP OIL UK LTD,X00022,10,2013
Allerdale Borough Council,10401,Employee Costs,Customer & Transformation Programme,Agency Staff Costs,29/01/2014,42393,720.00,AQUA BUBBLE LTD T/A CRYSTAL UMBRELLA,A01907,10,2013
Allerdale Borough Council,10401,Employee Costs,Customer & Transformation Programme,Agency Staff Costs,29/01/2014,42394,720.00,AQUA BUBBLE LTD T/A CRYSTAL UMBRELLA,A01907,10,2013
Allerdale Borough Council,15803,Supplies & Services,Shared IT Services,Hardware Purchase,12/02/2014,42395,28.13,MISCO,A00125,10,2013
Allerdale Borough Council,15803,Supplies & Services,Shared IT Services,Hardware Purchase,12/02/2014,42396,-28.13,MISCO,A00125,10,2013
Allerdale Borough Council,73102,Holding and Control Accounts,Capital Project Retentions,Holding Accounts General - Expenditure,15/01/2014,42397,"136,882.85",T ARMSTRONG - CONSTRUCTION,C00003,10,2013
Allerdale Borough Council,31105,Income,Mayors Charity,Contribution from The Public,15/01/2014,42398,597.45,THE ROTARY CLUB,M00374,10,2013
Allerdale Borough Council,15514,Supplies & Services,Mayor's Fund,Public Entertainment,15/01/2014,42399,74.00,Redacted information - included personal information ,M00373,10,2013
Allerdale Borough Council,54105,Capital Expenditure,Disabled Facilities Grants,Grants  Private Individuals (Capital),15/01/2014,42400,"1,380.00",FEARON BUILDERS,C00069,10,2013
Allerdale Borough Council,54105,Capital Expenditure,Disabled Facilities Grants,Grants  Private Individuals (Capital),15/01/2014,42401,"3,735.00",THYSSEN KRUPP ENCASA/LIFTABLE,X00105,10,2013
Allerdale Borough Council,54105,Capital Expenditure,Disabled Facilities Grants,Grants  Private Individuals (Capital),15/01/2014,42402,350.00,CONISTON CONSULTANTS LTD,X00210,10,2013
Allerdale Borough Council,54105,Capital Expenditure,Disabled Facilities Grants,Grants  Private Individuals (Capital),15/01/2014,42403,"5,730.00",K BAILIFF & SON LIMITED,X00116,10,2013
Allerdale Borough Council,54105,Capital Expenditure,Disabled Facilities Grants,Grants  Private Individuals (Capital),15/01/2014,42404,"3,530.00",HANDICARE ACCESSIBILITY LTD,X00211,10,2013
Allerdale Borough Council,54105,Capital Expenditure,Disabled Facilities Grants,Grants  Private Individuals (Capital),15/01/2014,42405,"4,050.00",DOLPHIN STAIRLIFTS CUMBRIA,X00107,10,2013
Allerdale Borough Council,54105,Capital Expenditure,Disabled Facilities Grants,Grants  Private Individuals (Capital),15/01/2014,42406,"2,450.00",BLUE FLAME SERVICES LTD,X00213,10,2013
Allerdale Borough Council,15514,Supplies & Services,Carnegie Theatre,Public Entertainment,15/01/2014,42407,"1,288.00",ALLERDALE BOROUGH COUNCIL - CARNEGIE,X00215,10,2013
Allerdale Borough Council,16350,Supplies & Services,Chief Executive,Miscellaneous Expenses,,42408,24.99,BARCLAYCARD COMMERCIAL,X00207,10,2013
Allerdale Borough Council,15201,Supplies & Services,Chief Executive,Entertainment Of Visitors,,42409,182.82,BARCLAYCARD COMMERCIAL,X00207,10,2013
Allerdale Borough Council,21150,Transfer Payments,Environmental Initiatives,General Grants,15/01/2014,42410,"10,350.00",KESWICK T.C.,X00080,10,2013
Allerdale Borough Council,12201,Premises,Homelessness,Internal Maintenance,15/01/2014,42411,31.00,TRAVIS PERKINS,A00742,10,2013
Allerdale Borough Council,12405,Premises,Homelessness,Rentals and Lease Charges,29/01/2014,42412,353.28,MAGPIE STORAGE LTD,A01786,10,2013
Allerdale Borough Council,12403,Premises,Homelessness,Gas,29/01/2014,42413,50.00,MEPOS LIMITED,A01286,10,2013
Allerdale Borough Council,16302,Supplies & Services,Members Services,Room Hire,05/02/2014,42414,58.50,MAGGIES BAKERY,A01685,10,2013
Allerdale Borough Council,15903,Supplies & Services,Members Services,Courses & Seminars,05/02/2014,42415,"1,175.95",NORTH WEST EMPLOYERS,A00139,10,2013
Allerdale Borough Council,15506,Supplies & Services,Legal Services,Professional Services,05/02/2014,42416,647.50,EVERSHEDS LLP,A01516,10,2013
Allerdale Borough Council,15506,Supplies & Services,Allerdale Investment Partnership,Professional Services,29/01/2014,42417,"1,651.50",FREETH CARTWRIGHT LLP,A01821,10,2013
Allerdale Borough Council,20102,Third Party Payments,Parks and Grounds Maintenance,Horticulture (Obsolete),15/01/2014,42418,"61,301.00",ISS WATERERS LANDSCAPE,C00044,10,2013
Allerdale Borough Council,15506,Supplies & Services,Other Land & Buildings,Professional Services,29/01/2014,42419,"1,537.05",SIGNET PLANNING LIMITED,A01914,10,2013
Allerdale Borough Council,15501,Supplies & Services,Street Cleansing,Consultants Fees,22/01/2014,42420,15.75,DUNDAS CHEMICAL CO (MOSSPARK),A00175,10,2013
Allerdale Borough Council,16150,Supplies & Services,Solway Wetlands Project,General Promotions,29/01/2014,42421,36.95,FINDEL EDUCATION LTD,A01767,10,2013
Allerdale Borough Council,12103,Premises,Parks and Grounds Maintenance,Grounds Maintenance,29/01/2014,42422,83.33,CUMBRIA PROBATION TRUST,A01432,10,2013
Allerdale Borough Council,15811,Supplies & Services,Shared IT Services,Software Maintenance,15/01/2014,42423,130.00,SAGE (UK) LTD,A01911,10,2013
Allerdale Borough Council,15811,Supplies & Services,Shared IT Services,Software Maintenance,12/02/2014,42424,130.00,SAGE (UK) LTD,A01911,10,2013
Allerdale Borough Council,15811,Supplies & Services,Shared IT Services,Software Maintenance,,42425,130.00,SAGE (UK) LTD,A01911,10,2013
Allerdale Borough Council,15202,Supplies & Services,Carnegie Theatre,Bar Provision,15/01/2014,42426,148.68,C.S. DRINKS LTD,A00005,10,2013
Allerdale Borough Council,15501,Supplies & Services,Human Resources Pay Group,Consultants Fees,15/01/2014,42427,110.70,BURNETTS SOLICITORS,A00129,10,2013
Allerdale Borough Council,15811,Supplies & Services,Shared IT Services,Software Maintenance,15/01/2014,42428,988.99,SAGE (UK) LTD,A01911,10,2013
Allerdale Borough Council,15811,Supplies & Services,Shared IT Services,Software Maintenance,15/01/2014,42429,777.04,SAGE (UK) LTD,A01911,10,2013
Allerdale Borough Council,15811,Supplies & Services,Shared IT Services,Software Maintenance,15/01/2014,42430,137.00,SAGE (UK) LTD,A01911,10,2013
Allerdale Borough Council,15811,Supplies & Services,Shared IT Services,Software Maintenance,15/01/2014,42431,157.00,SAGE (UK) LTD,A01911,10,2013
Allerdale Borough Council,15811,Supplies & Services,Shared IT Services,Software Maintenance,15/01/2014,42432,582.00,SAGE (UK) LTD,A01911,10,2013
Allerdale Borough Council,16101,Supplies & Services,Planning - Front Runners Project,Statutory Notices,22/01/2014,42433,586.26,CUMBRIA CC - 3C STUDIO,A00070,10,2013
Allerdale Borough Council,15500,Supplies & Services,Food and Occupational Health,Budget-Services,29/01/2014,42434,110.01,PUBLIC HEALTH ENGLAND,A01839,10,2013
Allerdale Borough Council,15512,Supplies & Services,Animal Welfare,Kennelling,22/01/2014,42435,"2,641.00",WHINMILL FARM CANINE CENTRE,A00117,10,2013
Allerdale Borough Council,15514,Supplies & Services,Mayor's Fund,Public Entertainment,22/01/2014,42436,31.00,Redacted information - included personal information ,A01949,10,2013
Allerdale Borough Council,12202,Premises,Public Convenience Cleaning,Electrical Repairs and Service,22/01/2014,42437,"1,420.00",Redacted information - included personal information ,C00008,10,2013
Allerdale Borough Council,15400,Supplies & Services,Revenue,"Budget-Printing,Stationery & Office Supp",22/01/2014,42438,"2,838.00",GROSVENOR HOUSE PAPERS,A00034,10,2013
Allerdale Borough Council,15500,Supplies & Services,Parks Development,Budget-Services,22/01/2014,42439,145.00,A & R BOUNCY CASTLES,A01863,10,2013
Allerdale Borough Council,15500,Supplies & Services,Economic Regeneration,Budget-Services,29/01/2014,42440,300.00,BRIT ENERGY COAST BUSINESS CLUSTER,A01648,10,2013
Allerdale Borough Council,15808,Supplies & Services,Shared IT Services,Computer Consumables,12/02/2014,42441,332.80,COOLSPIRIT LTD,A01085,10,2013
Allerdale Borough Council,12100,Premises,Parks and Grounds Maintenance,Budget-External Maintenance & Decoration,22/01/2014,42442,185.00,ISS WATERERS LANDSCAPE,C00044,10,2013
Allerdale Borough Council,15812,Supplies & Services,Shared Revs & Bens IT Costs,Software Development,22/01/2014,42443,"4,500.00",CAPITA BUSINESS SERVICE,A01264,10,2013
Allerdale Borough Council,10601,Employee Costs,Chief Executive,External Courses & Seminar Fees,22/01/2014,42444,400.00,SOLACE ENTERPRISES LTD,A00126,10,2013
Allerdale Borough Council,10401,Employee Costs,IT - New Initiatives,Agency Staff Costs,22/01/2014,42445,"1,625.00",HAYS,A00280,10,2013
Allerdale Borough Council,10401,Employee Costs,IT - New Initiatives,Agency Staff Costs,22/01/2014,42446,650.00,HAYS,A00280,10,2013
Allerdale Borough Council,10401,Employee Costs,IT - New Initiatives,Agency Staff Costs,22/01/2014,42447,975.00,HAYS,A00280,10,2013
Allerdale Borough Council,10401,Employee Costs,IT - New Initiatives,Agency Staff Costs,22/01/2014,42448,"1,300.00",HAYS,A00280,10,2013
Allerdale Borough Council,10401,Employee Costs,Licensing Pay Group,Agency Staff Costs,22/01/2014,42449,399.60,ADECCO RECRUITMENT,A00188,10,2013
Allerdale Borough Council,12303,Premises,Carnegie Theatre,Window Cleaning,22/01/2014,42450,39.14,J A LEE WINDOWS,A00051,10,2013
Allerdale Borough Council,10401,Employee Costs,Licensing Pay Group,Agency Staff Costs,22/01/2014,42451,162.00,ADECCO RECRUITMENT,A00188,10,2013
Allerdale Borough Council,15514,Supplies & Services,Carnegie Theatre,Public Entertainment,22/01/2014,42452,4.17,GD MACBETH AND SON,A00221,10,2013
Allerdale Borough Council,14201,,Carnegie Theatre,Public Transport,22/01/2014,42453,9.60,JOSIES TAXIS,A00819,10,2013
Allerdale Borough Council,15550,Supplies & Services,Licensing Service,General-Service Related Fees,17/01/2014,42454,264.00,DISCLOSURE & BARRING SERVICE,X00041,10,2013
Allerdale Borough Council,15202,Supplies & Services,Carnegie Theatre,Bar Provision,22/01/2014,42455,113.04,MITCHELL KRAUSE BREWING LTD,A01861,10,2013
Allerdale Borough Council,10401,Employee Costs,Licensing Pay Group,Agency Staff Costs,22/01/2014,42456,399.60,ADECCO RECRUITMENT,A00188,10,2013
Allerdale Borough Council,15507,Supplies & Services,Land Charges Service,Searches,22/01/2014,42457,"3,386.30",CUMBRIA CC - GENERAL,A00066,10,2013
Allerdale Borough Council,10401,Employee Costs,IT - New Initiatives,Agency Staff Costs,05/02/2014,42458,325.00,HAYS,A00280,10,2013
Allerdale Borough Council,10401,Employee Costs,IT - New Initiatives,Agency Staff Costs,05/02/2014,42459,"1,300.00",HAYS,A00280,10,2013
Allerdale Borough Council,10401,Employee Costs,IT - New Initiatives,Agency Staff Costs,12/02/2014,42460,"1,300.00",HAYS,A00280,10,2013
Allerdale Borough Council,15550,Supplies & Services,Carnegie Theatre,General-Service Related Fees,29/01/2014,42461,10.00,TRANSACTION NETWORK SERVICES (UK) LTD,A01778,10,2013
Allerdale Borough Council,12303,Premises,Corporate Property,Window Cleaning,22/01/2014,42462,234.85,J A LEE WINDOWS,A00051,10,2013
Allerdale Borough Council,10401,Employee Costs,Public Convenience Cleaning,Agency Staff Costs,22/01/2014,42463,185.64,COCKERMOUTH TOWN COUNCIL,A00586,10,2013
Allerdale Borough Council,12203,Premises,Corporate Property,Plumbing and Heating Maintenance,22/01/2014,42464,349.39,O'CONNELL & BEAN (MECH&ELEC) LTD,C00078,10,2013
Allerdale Borough Council,12307,Premises,Corporate Property,Fixtures and Fittings,29/01/2014,42465,421.86,EXPRESS ELEVATORS LTD,A00717,10,2013
Allerdale Borough Council,10308,Employee Costs,Pensions,Pension Increase Payments,05/02/2014,42466,"42,855.91",YOUR PENSION SERVICE,A01465,10,2013
Allerdale Borough Council,10202,Employee Costs,Human Resources Pay Group,Medical Screening,12/02/2014,42467,424.36,WELLWORK LTD,A00029,10,2013
Allerdale Borough Council,10202,Employee Costs,Human Resources Pay Group,Medical Screening,22/01/2014,42468,28.75,WELLWORK LTD,A00029,10,2013
Allerdale Borough Council,10202,Employee Costs,Human Resources Pay Group,Medical Screening,22/01/2014,42469,23.00,WELLWORK LTD,A00029,10,2013
Allerdale Borough Council,15300,Supplies & Services,Planning and Development,Budget-Prov of Clothing and Equipment,22/01/2014,42470,7.91,K&R BADGES LIMITED,A01328,10,2013
Allerdale Borough Council,16350,Supplies & Services,Planning and Development,Miscellaneous Expenses,22/01/2014,42471,3.37,K&R BADGES LIMITED,A01328,10,2013
Allerdale Borough Council,15202,Supplies & Services,Carnegie Theatre,Bar Provision,22/01/2014,42472,193.86,DRINKS EXPRESS,A01862,10,2013
Allerdale Borough Council,52101,Capital Expenditure,New Leisure Facility,Architects Fees (Capital),22/01/2014,42473,"28,375.00",GT ARCHITECTS,A01777,10,2013
Allerdale Borough Council,15202,Supplies & Services,Carnegie Theatre,Bar Provision,17/01/2014,42474,312.97,BOOKER CASH & CARRY,A01419,10,2013
Allerdale Borough Council,15202,Supplies & Services,Carnegie Theatre,Bar Provision,17/01/2014,42475,214.35,BOOKER CASH & CARRY,A01419,10,2013
Allerdale Borough Council,15202,Supplies & Services,Carnegie Theatre,Bar Provision,17/01/2014,42476,43.59,BOOKER CASH & CARRY ,A01419,10,2013
Allerdale Borough Council,15202,Supplies & Services,Carnegie Theatre,Bar Provision,17/01/2014,42477,18.57,BOOKER CASH & CARRY,A01419,10,2013
Allerdale Borough Council,16350,Supplies & Services,Planning and Development,Miscellaneous Expenses,22/01/2014,42478,-3.37,K&R BADGES LIMITED,A01328,10,2013
Allerdale Borough Council,16350,Supplies & Services,Planning and Development,Miscellaneous Expenses,22/01/2014,42479,3.37,K&R BADGES LIMITED,A01328,10,2013
Allerdale Borough Council,15201,Supplies & Services,Leaders Services,Entertainment Of Visitors,22/01/2014,42480,688.45,AL'S KITCHEN,A00187,10,2013
Allerdale Borough Council,12408,Premises,Public Convenience Cleaning,Water & Sewage,22/01/2014,42481,544.69,UNITED UTILITIES,X00011,10,2013
Allerdale Borough Council,70104,VAT,Input VAT,VAT - 20%,22/01/2014,42482,57.50,DWF LLP,A01874,10,2013
Allerdale Borough Council,12402,Premises,Footways,Electricity,22/01/2014,42483,181.84,N POWER,X00015,10,2013
Allerdale Borough Council,12403,Premises,Tenanted Properties,Gas,22/01/2014,42484,14.85,EON,X00016,10,2013
Allerdale Borough Council,15813,Supplies & Services,Shared IT Services,Software Miscellaneous,12/02/2014,42485,60.00,THUS/DEMON PLC/ (VODAFONE),A00598,10,2013
Allerdale Borough Council,12402,Premises,Car Parks Inspection & Maintenance,Electricity,22/01/2014,42486,300.31,N POWER,X00015,10,2013
Allerdale Borough Council,12402,Premises,Car Parks Inspection & Maintenance,Electricity,22/01/2014,42487,81.34,N POWER,X00015,10,2013
Allerdale Borough Council,12408,Premises,Public Convenience Cleaning,Water & Sewage,22/01/2014,42488,305.43,UNITED UTILITIES,X00011,10,2013
Allerdale Borough Council,12408,Premises,Corporate Property,Water & Sewage,22/01/2014,42489,76.34,UNITED UTILITIES,X00011,10,2013
Allerdale Borough Council,12408,Premises,Corporate Property,Water & Sewage,22/01/2014,42490,171.41,UNITED UTILITIES,X00011,10,2013
Allerdale Borough Council,12408,Premises,Public Convenience Cleaning,Water & Sewage,22/01/2014,42491,350.42,UNITED UTILITIES,X00011,10,2013
Allerdale Borough Council,15804,Supplies & Services,Shared IT Services,Computer Data Lines B.T.,22/01/2014,42492,"3,734.37",BRITISH TELECOMMUNICATIONS,X00004,10,2013
Allerdale Borough Council,15703,Supplies & Services,Silloth TIC,Call Charges,22/01/2014,42493,4.61,BRITISH TELECOMMUNICATIONS,X00004,10,2013
Allerdale Borough Council,12402,Premises,Corporate Property,Electricity,22/01/2014,42494,"1,093.86",N POWER,X00015,10,2013
Allerdale Borough Council,12402,Premises,Corporate Property,Electricity,22/01/2014,42495,"1,619.27",N POWER,X00015,10,2013
Allerdale Borough Council,12402,Premises,Corporate Property,Electricity,22/01/2014,42496,"4,384.98",N POWER,X00015,10,2013
Allerdale Borough Council,12403,Premises,Corporate Property,Gas,22/01/2014,42497,"1,232.62",BRITISH GAS,X00006,10,2013
Allerdale Borough Council,12402,Premises,Footways,Electricity,22/01/2014,42498,"4,722.10",N POWER,X00015,10,2013
Allerdale Borough Council,16150,Supplies & Services,Rugby World Cup,General Promotions,29/01/2014,42499,125.00,JIM DAVIS PHOTOGRAPHY,A00627,10,2013
Allerdale Borough Council,15506,Supplies & Services,Legal Services,Professional Services,12/02/2014,42500,58.00,LOCKMATES,A01939,10,2013
Allerdale Borough Council,14101,,Shared IT Services Pay Group,Vehicle Leasing,,42501,189.00,ARNOLD CLARK FINANCE LIMITED,A01781,10,2013
Allerdale Borough Council,15401,Supplies & Services,Multi-functional Printers,General Stationery,12/02/2014,42502,82.79,SUPPLIES TEAM SOLUTIONS,A01776,10,2013
Allerdale Borough Council,10308,Employee Costs,Pensions,Pension Increase Payments,05/02/2014,42503,136.98,YOUR PENSION SERVICE,A01465,10,2013
Allerdale Borough Council,12203,Premises,Corporate Property,Plumbing and Heating Maintenance,22/01/2014,42504,417.57,O'CONNELL & BEAN (MECH&ELEC) LTD,C00078,10,2013
Allerdale Borough Council,15501,Supplies & Services,Human Resources Pay Group,Consultants Fees,22/01/2014,42505,330.00,CUMBRIA CC - GENERAL,A00066,10,2013
Allerdale Borough Council,16302,Supplies & Services,Enterprise Coaches,Room Hire,05/02/2014,42506,390.00,MILLOM NETWORK CENTRE,A01083,10,2013
Allerdale Borough Council,21150,Transfer Payments,Apprentices Scheme,General Grants,22/01/2014,42507,750.00,WOMBAT WEB DESIGN,A01723,10,2013
Allerdale Borough Council,12405,Premises,Customer Services Pay Group,Rentals and Lease Charges,05/02/2014,42508,591.94,SOLWAY PLAIN FUTURES LTD,A01194,10,2013
Allerdale Borough Council,14200,,Director of Operations,Budget-Travel,29/01/2014,42509,29.79,ENTERPRISE RENT A CAR,A01367,10,2013
Allerdale Borough Council,12306,Premises,Public Convenience Cleaning,Legionella Inspections and Services,29/01/2014,42510,714.45,RENTOKIL INITIAL UK LTD - WATERSAFE,A01790,10,2013
Allerdale Borough Council,10100,Employee Costs,Environmental Services Pay Group,Budget-Salaries,22/01/2014,42511,667.50,ISS WATERERS LANDSCAPE,C00044,10,2013
Allerdale Borough Council,14105,,Parking Services Pay Group,"Fuel, Lubricants & Consumables",,42512,108.88,BP OIL UK LTD,X00022,10,2013
Allerdale Borough Council,15812,Supplies & Services,Shared IT Services,Software Development,,42513,149.87,HSBC CARD SERVICES,X00000,10,2013
Allerdale Borough Council,99902,Suspense Acc,Other Income Suspense Account,Suspense - Income Not Yet Identified,22/01/2014,42514,600.00,CROFTLANDS TRUST,M00375,10,2013
Allerdale Borough Council,15550,Supplies & Services,Out of Hours Telephones,General-Service Related Fees,29/01/2014,42515,"1,243.40",SITEXORBIS LIMITED,A00679,10,2013
Allerdale Borough Council,15202,Supplies & Services,Carnegie Theatre,Bar Provision,22/01/2014,42516,"1,024.73",DRINKS EXPRESS,A01862,10,2013
Allerdale Borough Council,20101,Third Party Payments,Recycling,Cleansing Contract,22/01/2014,42517,"369,686.25",FCC ENVIRONMENT SERVICES (FOCSA),A00085,10,2013
Allerdale Borough Council,15703,Supplies & Services,Carnegie Theatre,Call Charges,22/01/2014,42518,"1,360.30",BRITISH TELECOMMUNICATIONS,X00004,10,2013
Allerdale Borough Council,33107,Income,Trade Waste,Trade Refuse Charges Income,22/01/2014,42519,"2,490.47",Redacted information - included personal information ,M00376,10,2013
Allerdale Borough Council,33107,Income,Trade Waste,Trade Refuse Charges Income,22/01/2014,42520,498.16,SHEMARA LIMITED,M00377,10,2013
Allerdale Borough Council,33107,Income,Trade Waste,Trade Refuse Charges Income,22/01/2014,42521,29.64,PHX TRAINING LTD,M00378,10,2013
Allerdale Borough Council,33107,Income,Trade Waste,Trade Refuse Charges Income,22/01/2014,42522,239.29,Redacted information - included personal information ,M00379,10,2013
Allerdale Borough Council,33118,Income,Off-street - Owned,Car Parks - Season Tickets Income,22/01/2014,42523,31.99,Redacted information - included personal information ,M00380,10,2013
Allerdale Borough Council,20102,Third Party Payments,Recycling,Horticulture (Obsolete),22/01/2014,42524,185.00,THOMPSONS PLANT HIRE LTD,A00262,10,2013
Allerdale Borough Council,10401,Employee Costs,IT - New Initiatives,Agency Staff Costs,,42525,"1,462.50",HAYS,A00280,10,2013
Allerdale Borough Council,15202,Supplies & Services,Carnegie Theatre,Bar Provision,22/01/2014,42526,121.58,C.S. DRINKS LTD,A00005,10,2013
Allerdale Borough Council,16302,Supplies & Services,Members Services,Room Hire,12/02/2014,42527,113.10,CUMB RURAL ENTERPRISE AGENCY,A01640,10,2013
Allerdale Borough Council,15550,Supplies & Services,Bereavement Services,General-Service Related Fees,12/02/2014,42528,500.00,JOHN HILL & SONS,A01804,10,2013
Allerdale Borough Council,15811,Supplies & Services,Shared IT Services,Software Maintenance,22/01/2014,42529,"1,320.08",NORTHGATE INFORMATION SOLUTIONS,A00213,10,2013
Allerdale Borough Council,15501,Supplies & Services,Planning and Development,Consultants Fees,22/01/2014,42530,250.75,CAPITA (TREE/HEDGEROWS),A00683,10,2013
Allerdale Borough Council,70104,VAT,Input VAT,VAT - 20%,22/01/2014,42531,377.02,JACOBS (BAILIFFS),A00495,10,2013
Allerdale Borough Council,70104,VAT,Input VAT,VAT - 20%,22/01/2014,42532,232.10,JACOBS (BAILIFFS),A00495,10,2013
Allerdale Borough Council,70104,VAT,Input VAT,VAT - 20%,22/01/2014,42533,338.14,ROSSENDALES LTD,A00964,10,2013
Allerdale Borough Council,70104,VAT,Input VAT,VAT - 20%,22/01/2014,42534,196.42,JACOBS (BAILIFFS),A00495,10,2013
Allerdale Borough Council,12408,Premises,Public Convenience Cleaning,Water & Sewage,22/01/2014,42535,33.47,UNITED UTILITIES,X00011,10,2013
Allerdale Borough Council,70104,VAT,Input VAT,VAT - 20%,22/01/2014,42536,2.00,ROSSENDALES LTD,A00964,10,2013
Allerdale Borough Council,70104,VAT,Input VAT,VAT - 20%,22/01/2014,42537,0.16,ROSSENDALES LTD,A00964,10,2013
Allerdale Borough Council,70104,VAT,Input VAT,VAT - 20%,22/01/2014,42538,243.01,ROSSENDALES LTD,A00964,10,2013
Allerdale Borough Council,70104,VAT,Input VAT,VAT - 20%,22/01/2014,42539,2.26,ROSSENDALES LTD,A00964,10,2013
Allerdale Borough Council,70104,VAT,Input VAT,VAT - 20%,22/01/2014,42540,0.10,ROSSENDALES LTD,A00964,10,2013
Allerdale Borough Council,70104,VAT,Input VAT,VAT - 20%,22/01/2014,42541,248.37,ROSSENDALES LTD,A00964,10,2013
Allerdale Borough Council,70104,VAT,Input VAT,VAT - 20%,22/01/2014,42542,2.00,ROSSENDALES LTD,A00964,10,2013
Allerdale Borough Council,70104,VAT,Input VAT,VAT - 20%,22/01/2014,42543,8.01,ROSSENDALES LTD,A00964,10,2013
Allerdale Borough Council,70104,VAT,Input VAT,VAT - 20%,22/01/2014,42544,217.24,ROSSENDALES LTD,A00964,10,2013
Allerdale Borough Council,70104,VAT,Input VAT,VAT - 20%,05/02/2014,42545,99.40,JACOBS (BAILIFFS),A00495,10,2013
Allerdale Borough Council,70104,VAT,Input VAT,VAT - 20%,22/01/2014,42546,289.82,ROSSENDALES LTD,A00964,10,2013
Allerdale Borough Council,12408,Premises,Corporate Property,Water & Sewage,22/01/2014,42547,15.89,UNITED UTILITIES,X00011,10,2013
Allerdale Borough Council,12408,Premises,Corporate Property,Water & Sewage,22/01/2014,42548,90.17,UNITED UTILITIES,X00011,10,2013
Allerdale Borough Council,10401,Employee Costs,Head of Governance,Agency Staff Costs,05/02/2014,42549,222.36,VENN GROUP,A01836,10,2013
Allerdale Borough Council,15102,Supplies & Services,Environmental Protection,Equipment Repair & Maintenance,12/02/2014,42550,910.00,CAMPBELL ASSOCIATES LTD,A01184,10,2013
Allerdale Borough Council,15506,Supplies & Services,Environmental Protection,Professional Services,12/02/2014,42551,58.00,LOCKMATES,A01939,10,2013
Allerdale Borough Council,12103,Premises,Coastal Protection and Inland Flooding,Grounds Maintenance,12/02/2014,42552,85.00,UK HARBOUR MASTERS ASS,A01583,10,2013
Allerdale Borough Council,12202,Premises,Public Convenience Cleaning,Electrical Repairs and Service,29/01/2014,42553,"4,093.40",J & J ELECTRICAL (CUMBRIA) LTD,C00038,10,2013
Allerdale Borough Council,10401,Employee Costs,Asset Mgt & Capital Accounting System,Agency Staff Costs,12/02/2014,42554,"1,125.00",MACDONALD & COMPANY FREELANCE LTD,A01947,10,2013
Allerdale Borough Council,15202,Supplies & Services,Carnegie Theatre,Bar Provision,29/01/2014,42555,121.58,C.S. DRINKS LTD,A00005,10,2013
Allerdale Borough Council,15405,Supplies & Services,Rugby World Cup,Use of External Printers,22/01/2014,42556,231.83,CUMBRIA MAILING SERVICE,A00086,10,2013
Allerdale Borough Council,15101,Supplies & Services,Parking Services Pay Group,Equipment Costs,,42557,590.56,HSBC CARD SERVICES,X00000,10,2013
Allerdale Borough Council,15604,Supplies & Services,Document Management Pay Group,Franking Machine refills,12/02/2014,42558,418.00,FP EXECUTIVE AGENCY LTD,A00733,10,2013
Allerdale Borough Council,16350,Supplies & Services,Homelessness,Miscellaneous Expenses,22/01/2014,42559,267.37,FTA COLLECTIONS,M00381,10,2013
Allerdale Borough Council,54105,Capital Expenditure,Disabled Facilities Grants,Grants  Private Individuals (Capital),22/01/2014,42560,"2,480.00",BLUE FLAME SERVICES LTD,X00213,10,2013
Allerdale Borough Council,15803,Supplies & Services,Planning Service Del Improvement,Hardware Purchase,12/02/2014,42561,"8,610.44",NETCENTRIX LIMITED,A00106,10,2013
Allerdale Borough Council,15811,Supplies & Services,Shared IT Services,Software Maintenance,12/02/2014,42562,500.00,NORTHGATE INFORMATION SOLUTIONS,A00213,10,2013
Allerdale Borough Council,15808,Supplies & Services,Shared IT Services,Computer Consumables,12/02/2014,42563,76.00,NETCENTRIX LIMITED,A00106,10,2013
Allerdale Borough Council,16101,Supplies & Services,Planning and Development,Statutory Notices,29/01/2014,42564,376.77,CUMBRIA CC - 3C STUDIO,A00070,10,2013
Allerdale Borough Council,16101,Supplies & Services,Planning and Development,Statutory Notices,29/01/2014,42565,608.91,CUMBRIA CC - 3C STUDIO,A00070,10,2013
Allerdale Borough Council,15601,Supplies & Services,Communications and Marketing,Postage,29/01/2014,42566,7.91,K&R BADGES LIMITED,A01328,10,2013
Allerdale Borough Council,10401,Employee Costs,Customer & Transformation Programme,Agency Staff Costs,,42567,240.00,AQUA BUBBLE LTD T/A CRYSTAL UMBRELLA,A01907,10,2013
Allerdale Borough Council,16150,Supplies & Services,Solway Wetlands Project,General Promotions,29/01/2014,42568,"26,512.11",RSPB,M00200,10,2013
Allerdale Borough Council,16302,Supplies & Services,Enterprise Coaches,Room Hire,29/01/2014,42569,840.00,WHITEHAVEN COMMUNITY TRUST,A00240,10,2013
Allerdale Borough Council,20110,Third Party Payments,Markets,Other Local Authorities,29/01/2014,42570,250.00,COCKERMOUTH TOWN COUNCIL,A00586,10,2013
Allerdale Borough Council,15101,Supplies & Services,Public Convenience Cleaning,Equipment Costs,12/02/2014,42571,102.48,WF HYGIENE & CLEANING SUPPLIES,A01794,10,2013
Allerdale Borough Council,15501,Supplies & Services,Homelessness,Consultants Fees,29/01/2014,42572,25.98,JAMES STREET GROUP PRACTICE,A00462,10,2013
Allerdale Borough Council,15506,Supplies & Services,Allerdale Investment Partnership,Professional Services,29/01/2014,42573,"1,638.70",STRATEGIC NEGOTIATION SERVICES LTD,A01602,10,2013
Allerdale Borough Council,16150,Supplies & Services,Solway AONB Other Projects,General Promotions,29/01/2014,42574,100.00,MICHAELA CORRIE GRAPHIC DESIGN,A00513,10,2013
Allerdale Borough Council,16300,Supplies & Services,Contribution to LEP,Budget-Miscellaneous,29/01/2014,42575,"5,000.00",CUMBRIA CC - GENERAL,A00066,10,2013
Allerdale Borough Council,15401,Supplies & Services,Community Safety,General Stationery,12/02/2014,42576,325.00,CUMBRIA ENVIRONMENTAL IMPROVEMENT SERVICES LTD,C00126,10,2013
Allerdale Borough Council,33112,Income,Planning and Development,Planning Fees Income,29/01/2014,42577,770.00,Redacted information - included personal information ,M00382,10,2013
Allerdale Borough Council,33112,Income,Planning and Development,Planning Fees Income,29/01/2014,42578,98.00,Redacted information - included personal information ,M00383,10,2013
Allerdale Borough Council,15201,Supplies & Services,Chief Executive,Entertainment Of Visitors,,42579,83.35,BARCLAYCARD COMMERCIAL,X00207,10,2013
Allerdale Borough Council,12203,Premises,Public Convenience Cleaning,Plumbing and Heating Maintenance,29/01/2014,42580,"1,041.00",Redacted information - included personal information ,C00008,10,2013
Allerdale Borough Council,10602,Employee Costs,Training,Post Entry Training,29/01/2014,42581,200.00,CIPFA NORTH WEST (VARIOUS TREASURER'S),A01792,10,2013
Allerdale Borough Council,10602,Employee Costs,Training,Post Entry Training,23/01/2014,42582,970.00,CIPFA BUSINESS LIMITED,A01791,10,2013
Allerdale Borough Council,14105,,Parking Services Pay Group,"Fuel, Lubricants & Consumables",,42583,179.20,BP OIL UK LTD,X00022,10,2013
Allerdale Borough Council,33112,Income,Planning and Development,Planning Fees Income,29/01/2014,42600,385.00,Redacted information - included personal information ,M00384,10,2013
Allerdale Borough Council,33112,Income,Planning and Development,Planning Fees Income,29/01/2014,42601,110.00,PEARNING INVESTIA PROPERTIES,M00385,10,2013
Allerdale Borough Council,16350,Supplies & Services,Elections,Miscellaneous Expenses,29/01/2014,42602,200.64,Redacted information - included personal information ,M00211,10,2013
Allerdale Borough Council,15803,Supplies & Services,Shared IT Services,Hardware Purchase,05/02/2014,42603,136.90,KELWAY UK LTD,A00771,10,2013
Allerdale Borough Council,15402,Supplies & Services,Customer Services Pay Group,Photocopier Charges,12/02/2014,42604,14.69,RICOH UK LTD,A00037,10,2013
Allerdale Borough Council,12101,Premises,Car Parks Inspection & Maintenance,External Maintenance & Decoration,29/01/2014,42605,400.00,UNBLOCK CUMBRIA LTD,C00005,10,2013
Allerdale Borough Council,10401,Employee Costs,Public Convenience Cleaning,Agency Staff Costs,12/02/2014,42606,159.12,COCKERMOUTH TOWN COUNCIL,A00586,10,2013
Allerdale Borough Council,12101,Premises,Public Convenience Cleaning,External Maintenance & Decoration,29/01/2014,42607,220.00,UNBLOCK CUMBRIA LTD,C00005,10,2013
Allerdale Borough Council,12305,Premises,Corporate Property,Inspections and Services,,42608,5.01,PHS GROUP LTD,C00028,10,2013
Allerdale Borough Council,15515,Supplies & Services,Museums,Conservation & Display,,42609,"-1,002.19",BOX CLEVER STORAGE,A00880,10,2013
Allerdale Borough Council,15515,Supplies & Services,Museums,Conservation & Display,,42610,859.02,BOX CLEVER STORAGE,A00880,10,2013
Allerdale Borough Council,16150,Supplies & Services,KMAG Enhancement Activity,General Promotions,29/01/2014,42611,315.00,KESWICK TOURISM ASSOCIATION,A01882,10,2013
Allerdale Borough Council,15802,Supplies & Services,Parking Services Pay Group,Hardware Maintenance,29/01/2014,42612,58.08,RELIANCE HIGH-TECH LTD,C00123,10,2013
Allerdale Borough Council,15501,Supplies & Services,Environmental Protection,Consultants Fees,12/02/2014,42613,308.75,OSBORNE RICHARDSON,A00206,10,2013
Allerdale Borough Council,15810,Supplies & Services,Shared IT Services,Software Licences,,42614,"1,180.34",GOWER CONSULTANTS LTD,A00821,10,2013
Allerdale Borough Council,15810,Supplies & Services,Shared IT Services,Software Licences,,42615,241.58,GOWER CONSULTANTS LTD,A00821,10,2013
Allerdale Borough Council,15810,Supplies & Services,Shared IT Services,Software Licences,,42616,"1,179.23",GOWER CONSULTANTS LTD,A00821,10,2013
Allerdale Borough Council,85402,Balance Sheet,Community Safety,Reserves - Community Safety Partnership,12/02/2014,42617,"1,210.00",CUMBRIA ENVIRONMENTAL IMPROVEMENT SERVICES LTD,C00126,10,2013
Allerdale Borough Council,12402,Premises,Crime Prevention,Electricity,29/01/2014,42618,103.94,EON,X00016,10,2013
Allerdale Borough Council,15808,Supplies & Services,Off-street - Owned,Computer Consumables,29/01/2014,42619,143.14,COBALT TELEPHONE TECHNOLOGY,A01008,10,2013
Allerdale Borough Council,15702,Supplies & Services,Crime Prevention,Line Rentals,29/01/2014,42620,636.50,BRITISH TELECOMMUNICATIONS,X00004,10,2013
Allerdale Borough Council,15703,Supplies & Services,Corporate Property,Call Charges,29/01/2014,42621,596.89,BRITISH TELECOMMUNICATIONS,X00004,10,2013
Allerdale Borough Council,15702,Supplies & Services,Corporate Property,Line Rentals,29/01/2014,42622,62.62,BRITISH TELECOMMUNICATIONS,X00004,10,2013
Allerdale Borough Council,15702,Supplies & Services,Corporate Property,Line Rentals,29/01/2014,42623,63.00,BRITISH TELECOMMUNICATIONS,X00004,10,2013
Allerdale Borough Council,70102,VAT,Input VAT,VAT - 5%,29/01/2014,42624,51.32,BRITISH GAS,X00006,10,2013
Allerdale Borough Council,15501,Supplies & Services,Planning and Development,Consultants Fees,29/01/2014,42625,"16,000.00",KIRKGATE ARTS,A01090,10,2013
Allerdale Borough Council,20102,Third Party Payments,Recycling,Horticulture (Obsolete),29/01/2014,42626,477.48,FCC RECYCLING (UK) LTD (ALCO),A00185,10,2013
Allerdale Borough Council,20102,Third Party Payments,Recycling,Horticulture (Obsolete),29/01/2014,42627,347.52,FCC RECYCLING (UK) LTD (ALCO),A00185,10,2013
Allerdale Borough Council,51101,Capital Expenditure,KMAG Enhancement Project,External Contractor Payments (Capital),29/01/2014,42628,828.00,CUMBRIA CC,A00066,10,2013
Allerdale Borough Council,20110,Third Party Payments,Emergency Planning,Other Local Authorities,29/01/2014,42629,703.00,CUMBRIA CC,A00066,10,2013
Allerdale Borough Council,15508,Supplies & Services,Environmental Health Pay Group,Subscriptions,,42630,826.50,SWEET & MAXWELL (THOMSON REUTERS),A00028,10,2013
Allerdale Borough Council,15513,Supplies & Services,Carnegie Theatre,Subcontractors - General,05/02/2014,42631,140.25,R W AUDIO,C00059,10,2013
Allerdale Borough Council,16302,Supplies & Services,Enterprise Coaches,Room Hire,29/01/2014,42632,"1,378.75",MILLOM NETWORK CENTRE,A01083,10,2013
Allerdale Borough Council,15202,Supplies & Services,Carnegie Theatre,Bar Provision,29/01/2014,42633,456.91,CLASSIC DRINKS LIMITED,A00413,10,2013
Allerdale Borough Council,15510,Supplies & Services,Confidential Waste,Disposal of Waste,12/02/2014,42634,95.00,PW CONF BUS SERVICES,A01846,10,2013
Allerdale Borough Council,51101,Capital Expenditure,KMAG Enhancement Project,External Contractor Payments (Capital),29/01/2014,42635,565.86,CAPITA (TREE/HEDGEROWS),A00683,10,2013
Allerdale Borough Council,73102,Holding and Control Accounts,Allerdale House Tea Fund,Holding Accounts General - Expenditure,29/01/2014,42636,81.60,TELK LTD,A01670,10,2013
Allerdale Borough Council,15508,Supplies & Services,Environmental Health Pay Group,Subscriptions,,42637,870.00,SWEET & MAXWELL (THOMSON REUTERS),A00028,10,2013
Allerdale Borough Council,15508,Supplies & Services,Environmental Health Pay Group,Subscriptions,,42638,-870.00,SWEET & MAXWELL (THOMSON REUTERS),A00028,10,2013
Allerdale Borough Council,15703,Supplies & Services,Silloth TIC,Call Charges,29/01/2014,42639,99.55,BRITISH TELECOMMUNICATIONS,X00004,10,2013
Allerdale Borough Council,12402,Premises,Corporate Property,Electricity,29/01/2014,42640,316.95,N POWER,X00015,10,2013
Allerdale Borough Council,12408,Premises,Public Convenience Cleaning,Water & Sewage,29/01/2014,42641,122.32,UNITED UTILITIES,X00011,10,2013
Allerdale Borough Council,12402,Premises,Tenanted Properties,Electricity,29/01/2014,42642,6.19,N POWER ,X00015,10,2013
Allerdale Borough Council,12402,Premises,Public Convenience Cleaning,Electricity,29/01/2014,42643,29.72,N POWER,X00015,10,2013
Allerdale Borough Council,12402,Premises,Public Convenience Cleaning,Electricity,29/01/2014,42644,48.08,N POWER,X00015,10,2013
Allerdale Borough Council,20108,Third Party Payments,Corporate Management,Audit Commission,29/01/2014,42645,"15,817.50",GRANT THORNTON UK LLP,A01736,10,2013
Allerdale Borough Council,15405,Supplies & Services,Parking Services Pay Group,Use of External Printers,29/01/2014,42646,933.00,NAGELS MULTIGRAPHIC LTD,A00690,10,2013
Allerdale Borough Council,20150,Third Party Payments,Multi-storey Car Park,General Partnership Service Fees,29/01/2014,42647,"68,633.80",PARKSAFE,A00647,10,2013
Allerdale Borough Council,15301,Supplies & Services,Parking Services Pay Group,Uniforms,29/01/2014,42648,139.50,THOMAS ARMSTRONG - LINDEN/KAYTOOLS,A00091,10,2013
Allerdale Borough Council,15501,Supplies & Services,Planning Policy,Consultants Fees,,42649,"4,930.00",TULLIE HOUSE MUSEUM & ART GALLERY TRUST,A01238,10,2013
Allerdale Borough Council,16003,Supplies & Services,Customer Services Pay Group,Security of Cash Movements,,42650,864.38,SECURITY PLUS LIMITED,A00503,10,2013
Allerdale Borough Council,20102,Third Party Payments,Recycling,Horticulture (Obsolete),05/02/2014,42651,166.00,THOMPSONS PLANT HIRE LTD,A00262,10,2013
Allerdale Borough Council,15501,Supplies & Services,Planning - Front Runners Project,Consultants Fees,12/02/2014,42652,"1,950.00",PLANNING AND MANAGEMENT LTD,A01940,10,2013
Allerdale Borough Council,15604,Supplies & Services,Document Management Pay Group,Franking Machine refills,,42653,234.00,FP EXECUTIVE AGENCY LTD,A00733,10,2013
Allerdale Borough Council,12408,Premises,Corporate Property,Water & Sewage,29/01/2014,42654,99.12,UNITED UTILITIES,X00011,10,2013
Allerdale Borough Council,12408,Premises,Corporate Property,Water & Sewage,29/01/2014,42655,100.32,UNITED UTILITIES,X00011,10,2013
Allerdale Borough Council,12408,Premises,Other Land & Buildings,Water & Sewage,29/01/2014,42656,23.45,UNITED UTILITIES,X00011,10,2013
Allerdale Borough Council,20110,Third Party Payments,Trade Waste,Other Local Authorities,,42657,"62,513.70",CUMBRIA COUNTY COUNCIL,A01124,10,2013
Allerdale Borough Council,20110,Third Party Payments,Trade Waste,Other Local Authorities,,42658,"73,245.00",CUMBRIA COUNTY COUNCIL,A01124,10,2013
Allerdale Borough Council,16150,Supplies & Services,Town Centre Management,General Promotions,29/01/2014,42659,300.00,CUMBRIAN NEWSPAPERS LIMITED,A00869,10,2013
Allerdale Borough Council,81602,Balance Sheet,General Fund,Prov-Insurance Excess (Balance Sheet),29/01/2014,42660,204.00,Redacted information - included personal information ,M00388,10,2013
Allerdale Borough Council,33101,Income,Domestic Waste,Charges for Services General Income,29/01/2014,42661,17.23,Redacted information - included personal information ,M00387,10,2013
Allerdale Borough Council,33113,Income,Building Control - Chargeable,Building Control Fees Income,29/01/2014,42662,50.40,S & H CONSTRUCTION,M00386,10,2013
Allerdale Borough Council,33113,Income,Building Control - Chargeable,Building Control Fees Income,05/02/2014,42663,160.21,T ARMSTRONG - CONSTRUCTION,C00003,10,2013
Allerdale Borough Council,16350,Supplies & Services,Elections,Miscellaneous Expenses,29/01/2014,42664,133.76,HMRC CUMBERNAULD,A00475,10,2013
Allerdale Borough Council,15502,Supplies & Services,Legal Services,Land Registry Fees,21/01/2014,42665,49.00,HM LAND REGISTRY ,A00505,10,2013
Allerdale Borough Council,15502,Supplies & Services,Legal Services,Land Registry Fees,22/01/2014,42666,55.00,HM LAND REGISTRY ,A00505,10,2013
Allerdale Borough Council,35106,Income,Homelessness,Dwellings Income,05/02/2014,42667,774.82,ALLERDALE - CASH OFFICE,A00342,10,2013
Allerdale Borough Council,35106,Income,Homelessness,Dwellings Income,05/02/2014,42668,93.40,ALLERDALE - CASH OFFICE,A00342,10,2013
Allerdale Borough Council,35106,Income,Homelessness,Dwellings Income,05/02/2014,42669,2.28,ALLERDALE - CASH OFFICE,A00342,10,2013
Allerdale Borough Council,35106,Income,Homelessness,Dwellings Income,05/02/2014,42670,182.66,ALLERDALE - CASH OFFICE,A00342,10,2013
Allerdale Borough Council,15704,Supplies & Services,Assistance - Housing Services,Mobile Phones,05/02/2014,42671,"1,057.17",VODAFONE,A00551,10,2013
Allerdale Borough Council,12405,Premises,Parking Services Pay Group,Rentals and Lease Charges,05/02/2014,42672,352.50,SOLWAY PLAIN FUTURES LTD,A01194,10,2013
Allerdale Borough Council,20150,Third Party Payments,Parking Services Pay Group,General Partnership Service Fees,12/02/2014,42673,982.20,PATROL,A00952,10,2013
Allerdale Borough Council,20150,Third Party Payments,On street Parking,General Partnership Service Fees,12/02/2014,42674,246.60,PATROL,A00952,10,2013
Allerdale Borough Council,15601,Supplies & Services,Benefits,Postage,05/02/2014,42675,"1,606.30",ROYAL MAIL LETTERS,X00021,10,2013
Allerdale Borough Council,15601,Supplies & Services,Benefits,Postage,05/02/2014,42676,"1,584.34",ROYAL MAIL LETTERS,X00021,10,2013
Allerdale Borough Council,12303,Premises,Corporate Property,Window Cleaning,05/02/2014,42677,60.00,Redacted information - included personal information ,A00259,10,2013
Allerdale Borough Council,15811,Supplies & Services,Shared Revs & Bens IT Costs,Software Maintenance,05/02/2014,42678,882.25,CIVICA UK LIMITED,A00006,10,2013
Allerdale Borough Council,15501,Supplies & Services,Environmental Protection,Consultants Fees,,42679,331.20,UNITED UTILITIES PLC,A01657,10,2013
Allerdale Borough Council,15508,Supplies & Services,Licensing Service,Subscriptions,05/02/2014,42680,299.00,INSTITUTE OF LEGAL EXECUTIVES,A00711,10,2013
Allerdale Borough Council,20150,Third Party Payments,Land Charges Service,General Partnership Service Fees,,42681,"2,308.08",LOCAL GOVERNMENT ASSOCIATION,A00686,10,2013
Allerdale Borough Council,10202,Employee Costs,Human Resources Pay Group,Medical Screening,,42682,257.50,WELLWORK LTD,A00029,10,2013
Allerdale Borough Council,10401,Employee Costs,IT - New Initiatives,Agency Staff Costs,,42683,"1,462.50",HAYS,A00280,10,2013
Allerdale Borough Council,16300,Supplies & Services,Festivals & Events,Budget-Miscellaneous,,42684,"25,500.00",CN EVENTS MANAGEMENT,A01099,10,2013
Allerdale Borough Council,14105,,Parking Services Pay Group,"Fuel, Lubricants & Consumables",,42685,725.08,BP OIL UK LTD ,X00022,10,2013
Allerdale Borough Council,12409,Premises,Insurances,Buildings and Contents Insurance,05/02/2014,42686,"3,965.00",CARLISLE LEISURE LTD,A00136,10,2013
Allerdale Borough Council,15501,Supplies & Services,IT - New Initiatives,Consultants Fees,,42687,"8,025.00",PHASE 3 CONSULTING,A00440,10,2013
Allerdale Borough Council,12101,Premises,Car Parks Inspection & Maintenance,External Maintenance & Decoration,05/02/2014,42688,355.00,JOHN ELLIOTT LIMITED,C00023,10,2013
Allerdale Borough Council,12103,Premises,Coastal Protection and Inland Flooding,Grounds Maintenance,,42689,352.00,JOHN ELLIOTT LIMITED,C00023,10,2013
Allerdale Borough Council,85402,Balance Sheet,Community Safety,Reserves - Community Safety Partnership,12/02/2014,42690,940.00,GRASSMATS LLP,A01925,10,2013
Allerdale Borough Council,20102,Third Party Payments,Recycling,Horticulture (Obsolete),05/02/2014,42691,307.56,FCC RECYCLING (UK) LTD (ALCO),A00185,10,2013
Allerdale Borough Council,15512,Supplies & Services,Animal Welfare,Kennelling,05/02/2014,42692,18.58,MILLCROFT VETERINARY GROUP,A00211,10,2013
Allerdale Borough Council,15501,Supplies & Services,Street Cleansing,Consultants Fees,,42693,18.90,DUNDAS CHEMICAL CO (MOSSPARK),A00175,10,2013
Allerdale Borough Council,81602,Balance Sheet,General Fund,Prov-Insurance Excess (Balance Sheet),05/02/2014,42694,"52,204.00",MUNICIPAL MUTUAL INSURANCE LTD ,A01946,10,2013
Allerdale Borough Council,15101,Supplies & Services,Street Cleansing,Equipment Costs,,42695,"1,200.00",PMC POLYTHENE LTD,A00194,10,2013
Allerdale Borough Council,16150,Supplies & Services,Solway Wetlands Project,General Promotions,,42696,150.00,ASKHAM BRYAN COLLEGE,A01841,10,2013
Allerdale Borough Council,15502,Supplies & Services,Legal Services,Land Registry Fees,,42697,34.00,HM LAND REGISTRY,A00505,10,2013
Allerdale Borough Council,15502,Supplies & Services,Legal Services,Land Registry Fees,,42698,36.00,HM LAND REGISTRY ,A00505,10,2013
Allerdale Borough Council,16100,Supplies & Services,Building Control - Chargeable,Budget-Advertising and Promotions,05/02/2014,42699,55.00,FIRPRESS PRINTERS,A00063,10,2013
Allerdale Borough Council,12305,Premises,Corporate Property,Inspections and Services,,42700,16.68,PHS GROUP LTD,C00028,10,2013
Allerdale Borough Council,15601,Supplies & Services,Carnegie Theatre,Postage,05/02/2014,42701,68.17,ALLERDALE BOROUGH COUNCIL - CARNEGIE,X00215,10,2013
Allerdale Borough Council,15514,Supplies & Services,Carnegie Theatre,Public Entertainment,05/02/2014,42702,800.00,ALLERDALE BOROUGH COUNCIL - CARNEGIE,X00215,10,2013
Allerdale Borough Council,70104,VAT,VAT Control Account,VAT - 20%,05/02/2014,42703,"13,732.21",WADAMS,A01476,10,2013
Allerdale Borough Council,16102,Supplies & Services,Town Centre Management,Regeneration Initiatives,05/02/2014,42704,400.00,SILLOTH TOURISM ACTION GROUP,M00389,10,2013
Allerdale Borough Council,26000,Earmarked Reserves,Car Park Equipment,Budget-Expd funded from Reserve,05/02/2014,42705,"5,558.36",CHIPSIDE LIMITED,A00004,10,2013
Allerdale Borough Council,26000,Earmarked Reserves,Car Park Equipment,Budget-Expd funded from Reserve,05/02/2014,42706,"17,628.27",CHIPSIDE LIMITED,A00004,10,2013
Allerdale Borough Council,26000,Earmarked Reserves,Car Park Equipment,Budget-Expd funded from Reserve,05/02/2014,42707,500.00,CHIPSIDE LIMITED,A00004,10,2013
Allerdale Borough Council,15501,Supplies & Services,Environmental Protection,Consultants Fees,,42708,682.50,Redacted information - included personal information ,A00206,10,2013
Allerdale Borough Council,12305,Premises,Industrial Units,Inspections and Services,05/02/2014,42709,750.00,WEST COAST THERMAL LIMITED,C00040,10,2013
Allerdale Borough Council,15101,Supplies & Services,Street Cleansing,Equipment Costs,,42710,800.00,PMC POLYTHENE LTD,A00194,10,2013
Allerdale Borough Council,10401,Employee Costs,Asset Mgt & Capital Accounting System,Agency Staff Costs,,42711,900.00,MACDONALD & COMPANY FREELANCE LTD,A01947,10,2013
Allerdale Borough Council,10401,Employee Costs,Asset Mgt & Capital Accounting System,Agency Staff Costs,,42712,"1,140.00",MACDONALD & COMPANY FREELANCE LTD,A01947,10,2013
Allerdale Borough Council,16101,Supplies & Services,Planning and Development,Statutory Notices,05/02/2014,42713,896.51,CUMBRIA CC - 3C STUDIO,A00070,10,2013
Allerdale Borough Council,15550,Supplies & Services,Carnegie Theatre,General-Service Related Fees,12/02/2014,42714,3.28,TICKETS.COM LTD,A00371,10,2013
Allerdale Borough Council,15550,Supplies & Services,Carnegie Theatre,General-Service Related Fees,05/02/2014,42715,27.88,TICKETS.COM LTD,A00371,10,2013
Allerdale Borough Council,15550,Supplies & Services,Carnegie Theatre,General-Service Related Fees,05/02/2014,42716,24.60,TICKETS.COM LTD,A00371,10,2013
Allerdale Borough Council,15550,Supplies & Services,Carnegie Theatre,General-Service Related Fees,05/02/2014,42717,4.92,TICKETS.COM LTD,A00371,10,2013
Allerdale Borough Council,15550,Supplies & Services,Carnegie Theatre,General-Service Related Fees,,42718,8.20,TICKETS.COM LTD,A00371,10,2013
Allerdale Borough Council,15550,Supplies & Services,Carnegie Theatre,General-Service Related Fees,,42719,11.48,TICKETS.COM LTD,A00371,10,2013
Allerdale Borough Council,15202,Supplies & Services,Carnegie Theatre,Bar Provision,12/02/2014,42720,11.84,SOLWAY HEATERS LTD,A00305,10,2013
Allerdale Borough Council,15202,Supplies & Services,Carnegie Theatre,Bar Provision,,42721,86.99,DRINKS EXPRESS,A01862,10,2013
Allerdale Borough Council,73102,Holding and Control Accounts,Capital Project Retentions,Holding Accounts General - Expenditure,,42722,"1,157.99",R H IRVING CONSTRUCTION LTD,C00103,10,2013
Allerdale Borough Council,12408,Premises,Tenanted Properties,Water & Sewage,05/02/2014,42723,24.50,UNITED UTILITIES,X00011,10,2013
Allerdale Borough Council,12408,Premises,Other Land & Buildings,Water & Sewage,05/02/2014,42724,11.55,UNITED UTILITIES,X00011,10,2013
Allerdale Borough Council,12402,Premises,Tenanted Properties,Electricity,05/02/2014,42725,20.71,EON,X00016,10,2013
Allerdale Borough Council,12408,Premises,Corporate Property,Water & Sewage,05/02/2014,42726,856.42,UNITED UTILITIES,X00011,10,2013
Allerdale Borough Council,12403,Premises,Tenanted Properties,Gas,05/02/2014,42727,4.31,EON,X00016,10,2013
Allerdale Borough Council,12408,Premises,Tenanted Properties,Water & Sewage,05/02/2014,42728,262.33,UNITED UTILITIES,X00011,10,2013
Allerdale Borough Council,12408,Premises,Other Land & Buildings,Water & Sewage,05/02/2014,42729,14.62,UNITED UTILITIES,X00011,10,2013
Allerdale Borough Council,12408,Premises,Tenanted Properties,Water & Sewage,05/02/2014,42730,51.46,UNITED UTILITIES,X00011,10,2013
Allerdale Borough Council,12408,Premises,Corporate Property,Water & Sewage,05/02/2014,42731,13.35,UNITED UTILITIES,X00011,10,2013
Allerdale Borough Council,12408,Premises,Public Convenience Cleaning,Water & Sewage,05/02/2014,42732,67.52,UNITED UTILITIES,X00011,10,2013
Allerdale Borough Council,15501,Supplies & Services,Environmental Protection,Consultants Fees,,42733,682.50,OSBORNE RICHARDSON,A00206,10,2013
Allerdale Borough Council,15103,Supplies & Services,Community Safety,Purchase of Materials,,42734,28.00,GRASSMATS LLP,A01925,10,2013
Allerdale Borough Council,14104,,Public Convenience Cleaning,Repairs & Maintenance,05/02/2014,42735,173.32,GOODFELLOW & SONS,A00031,10,2013
Allerdale Borough Council,15302,Supplies & Services,Environmental Health Pay Group,Protective Clothing,,42736,-31.25,ARCO LIMITED - CARLISLE,A01448,10,2013
Allerdale Borough Council,15302,Supplies & Services,Environmental Health Pay Group,Protective Clothing,,42737,31.25,ARCO LIMITED - CARLISLE,A01448,10,2013
Allerdale Borough Council,15502,Supplies & Services,Legal Services,Land Registry Fees,,42738,68.00,HM LAND REGISTRY ,A00505,10,2013
Allerdale Borough Council,15500,Supplies & Services,Food and Occupational Health,Budget-Services,,42739,235.00,MP MARINE LTD,A00113,10,2013
Allerdale Borough Council,15401,Supplies & Services,On street Parking,General Stationery,12/02/2014,42740,545.00,NAGELS MULTIGRAPHIC LTD,A00690,10,2013
Allerdale Borough Council,15803,Supplies & Services,Shared IT Services,Hardware Purchase,,42741,35.26,KELWAY UK LTD,A00771,10,2013
Allerdale Borough Council,15202,Supplies & Services,Carnegie Theatre,Bar Provision,,42742,27.98,BOOKER CASH & CARRY,A01419,10,2013
Allerdale Borough Council,15202,Supplies & Services,Carnegie Theatre,Bar Provision,,42743,143.36,BOOKER CASH & CARRY,A01419,10,2013
Allerdale Borough Council,12302,Premises,Carnegie Theatre,Building Cleaning,05/02/2014,42744,43.96,CATERITE FOOD & WINE SERVICE,A00210,10,2013
Allerdale Borough Council,15202,Supplies & Services,Carnegie Theatre,Bar Provision,,42745,77.42,BOOKER CASH & CARRY,A01419,10,2013
Allerdale Borough Council,20102,Third Party Payments,Recycling,Horticulture (Obsolete),12/02/2014,42746,129.50,THOMPSONS PLANT HIRE LTD,A00262,10,2013
Allerdale Borough Council,10401,Employee Costs,Licensing Pay Group,Agency Staff Costs,05/02/2014,42747,68.90,VENN GROUP,A01836,10,2013
Allerdale Borough Council,15101,Supplies & Services,Animal Welfare,Equipment Costs,12/02/2014,42748,388.60,Redacted information - included personal information ,A00176,10,2013
Allerdale Borough Council,10401,Employee Costs,Licensing Pay Group,Agency Staff Costs,05/02/2014,42749,384.00,VENN GROUP,A01836,10,2013
Allerdale Borough Council,10401,Employee Costs,Licensing Pay Group,Agency Staff Costs,05/02/2014,42750,384.00,VENN GROUP,A01836,10,2013
Allerdale Borough Council,10401,Employee Costs,Licensing Pay Group,Agency Staff Costs,,42751,384.00,VENN GROUP,A01836,10,2013
Allerdale Borough Council,10401,Employee Costs,Licensing Pay Group,Agency Staff Costs,,42752,384.00,VENN GROUP,A01836,10,2013
Allerdale Borough Council,10401,Employee Costs,Licensing Pay Group,Agency Staff Costs,05/02/2014,42753,200.00,VENN GROUP,A01836,10,2013
Allerdale Borough Council,15501,Supplies & Services,Homelessness,Consultants Fees,05/02/2014,42754,25.00,MARYPORT HEALTH SERVICE,A00421,10,2013
Allerdale Borough Council,15503,Supplies & Services,Legal Services,Court and Tribunal Costs,05/02/2014,42755,700.00,HM COURT SERVICE,A00913,10,2013
Allerdale Borough Council,15403,Supplies & Services,Senior Mgt/PA Pay Group,Publications and Periodicals,12/02/2014,42756,8.10,P & D NEWSAGENTS,A00237,10,2013
Allerdale Borough Council,10401,Employee Costs,Head of Governance,Agency Staff Costs,05/02/2014,42757,279.04,VENN GROUP,A01836,10,2013
Allerdale Borough Council,10401,Employee Costs,Head of Governance,Agency Staff Costs,05/02/2014,42758,226.72,VENN GROUP,A01836,10,2013
Allerdale Borough Council,10401,Employee Costs,Head of Governance,Agency Staff Costs,05/02/2014,42759,279.04,VENN GROUP,A01836,10,2013
Allerdale Borough Council,10401,Employee Costs,Licensing Pay Group,Agency Staff Costs,12/02/2014,42760,384.00,VENN GROUP,A01836,10,2013
Allerdale Borough Council,10401,Employee Costs,Licensing Pay Group,Agency Staff Costs,05/02/2014,42761,287.50,VENN GROUP,A01836,10,2013
Allerdale Borough Council,34150,Income,Planning and Development,General Recovery of Other Costs-Income,05/02/2014,42762,12.50,Redacted information - included personal information ,M00390,10,2013
Allerdale Borough Council,16350,Supplies & Services,Homelessness,Miscellaneous Expenses,05/02/2014,42763,75.00,BR PROPERTIES,M00017,10,2013
Allerdale Borough Council,16350,Supplies & Services,Homelessness,Miscellaneous Expenses,05/02/2014,42764,350.00,ID PROPERTIES,M00259,10,2013
Allerdale Borough Council,81602,Balance Sheet,General Fund,Prov-Insurance Excess (Balance Sheet),12/02/2014,42765,50.00,Redacted information - included personal information ,M00391,10,2013
Allerdale Borough Council,12402,Premises,Corporate Property,Electricity,12/02/2014,42766,"2,312.73",N POWER,X00015,10,2013
Allerdale Borough Council,12402,Premises,Corporate Property,Electricity,12/02/2014,42767,"1,744.57",N POWER,X00015,10,2013
Allerdale Borough Council,12402,Premises,Corporate Property,Electricity,12/02/2014,42768,"2,040.40",N POWER,X00015,10,2013
Allerdale Borough Council,15501,Supplies & Services,Banking and Interest,Consultants Fees,,42769,"2,450.00",FOCUS ON BANKING LTD,A01735,10,2013
Allerdale Borough Council,15703,Supplies & Services,Shared IT Services,Call Charges,,42770,556.27,VODAFONE (PREV CABLE & WIRELESS),A00934,10,2013
Allerdale Borough Council,43033,Recharges,Head of Governance,Director of Operations,12/02/2014,42771,52.33,ENTERPRISE RENT A CAR,A01367,10,2013
Allerdale Borough Council,15300,Supplies & Services,Planning and Development,Budget-Prov of Clothing and Equipment,12/02/2014,42772,52.48,ARGOS BUSINESS SOLUTION-STORE COLLECTION,A00411,10,2013
Allerdale Borough Council,15300,Supplies & Services,Planning and Development,Budget-Prov of Clothing and Equipment,12/02/2014,42773,-41.66,ARGOS BUSINESS SOLUTION-STORE COLLECTION,A00411,10,2013
Allerdale Borough Council,16102,Supplies & Services,Town Centre Management,Regeneration Initiatives,,42774,375.00,WINDER HALL COUNTRY HOUSE,A01954,10,2013
Allerdale Borough Council,15402,Supplies & Services,Customer Contact Centre,Photocopier Charges,,42775,61.71,KONICA MINOLTA BUSINESS SOLUTIONS UK LTD,A01556,10,2013
Allerdale Borough Council,10202,Employee Costs,Human Resources Pay Group,Medical Screening,,42776,32.96,WELLWORK LTD,A00029,10,2013
Allerdale Borough Council,15513,Supplies & Services,Carnegie Theatre,Subcontractors - General,,42777,231.00,Redacted information - included personal information ,A01510,10,2013
Allerdale Borough Council,15506,Supplies & Services,Allerdale Investment Partnership,Professional Services,,42778,"6,018.00",FREETH CARTWRIGHT LLP,A01821,10,2013
Allerdale Borough Council,15506,Supplies & Services,Legal Services,Professional Services,,42779,"2,250.00",Redacted information - included personal information ,A01923,10,2013
Allerdale Borough Council,15202,Supplies & Services,Carnegie Theatre,Bar Provision,12/02/2014,42780,14.29,SOLWAY HEATERS LTD,A00305,10,2013
Allerdale Borough Council,15513,Supplies & Services,Carnegie Theatre,Subcontractors - General,12/02/2014,42781,198.00,R W AUDIO,C00059,10,2013
Allerdale Borough Council,15401,Supplies & Services,Document Management Pay Group,General Stationery,,42782,204.26,LYRECO,A00043,10,2013
Allerdale Borough Council,15401,Supplies & Services,Document Management Pay Group,General Stationery,,42783,29.01,LYRECO,A00043,10,2013
Allerdale Borough Council,15401,Supplies & Services,Document Management Pay Group,General Stationery,,42784,275.00,LYRECO,A00043,10,2013
Allerdale Borough Council,15401,Supplies & Services,Document Management Pay Group,General Stationery,,42785,177.03,LYRECO,A00043,10,2013
Allerdale Borough Council,15401,Supplies & Services,Document Management Pay Group,General Stationery,,42786,54.58,LYRECO,A00043,10,2013
Allerdale Borough Council,15808,Supplies & Services,Document Management Pay Group,Computer Consumables,,42787,308.80,LYRECO,A00043,10,2013
Allerdale Borough Council,15401,Supplies & Services,Document Management Pay Group,General Stationery,,42788,30.72,LYRECO,A00043,10,2013
Allerdale Borough Council,15401,Supplies & Services,Document Management Pay Group,General Stationery,,42789,24.44,LYRECO,A00043,10,2013
Allerdale Borough Council,15401,Supplies & Services,Document Management Pay Group,General Stationery,,42790,23.68,LYRECO,A00043,10,2013
Allerdale Borough Council,15401,Supplies & Services,Document Management Pay Group,General Stationery,,42791,21.55,LYRECO,A00043,10,2013
Allerdale Borough Council,15401,Supplies & Services,Document Management Pay Group,General Stationery,,42792,83.24,LYRECO,A00043,10,2013
Allerdale Borough Council,15401,Supplies & Services,Document Management Pay Group,General Stationery,,42793,5.69,LYRECO,A00043,10,2013
Allerdale Borough Council,15401,Supplies & Services,Document Management Pay Group,General Stationery,,42794,59.08,LYRECO,A00043,10,2013
Allerdale Borough Council,15401,Supplies & Services,Document Management Pay Group,General Stationery,,42795,220.00,LYRECO,A00043,10,2013
Allerdale Borough Council,15401,Supplies & Services,Document Management Pay Group,General Stationery,,42796,220.00,LYRECO,A00043,10,2013
Allerdale Borough Council,15401,Supplies & Services,Document Management Pay Group,General Stationery,,42797,35.28,LYRECO,A00043,10,2013
Allerdale Borough Council,15400,Supplies & Services,Revenue,"Budget-Printing,Stationery & Office Supp",,42798,"1,440.00",PARAGON GROUP UK LIMITED,A01493,10,2013
Allerdale Borough Council,15102,Supplies & Services,Solway Coast AONB Core Funding,Equipment Repair & Maintenance,12/02/2014,42799,112.00,Redacted information - included personal information ,A00739,10,2013
Allerdale Borough Council,15508,Supplies & Services,Emergency Planning,Subscriptions,,42800,445.00,AST CONNECTIONS LTD,A00697,10,2013
Allerdale Borough Council,51101,Capital Expenditure,Workington Hall Repairs,External Contractor Payments (Capital),12/02/2014,42801,"11,897.00",MOSEDALE GILLATT,A01020,10,2013
Allerdale Borough Council,20102,Third Party Payments,Recycling,Horticulture (Obsolete),12/02/2014,42802,288.96,FCC RECYCLING (UK) LTD (ALCO),A00185,10,2013
Allerdale Borough Council,20305,Third Party Payments,Maryport Wave,Contract Services-Leisure Centres,12/02/2014,42803,"16,427.20",CARLISLE LEISURE LTD,A00136,10,2013
Allerdale Borough Council,20305,Third Party Payments,Sports & Leisure Centres,Contract Services-Leisure Centres,12/02/2014,42804,"49,232.94",CARLISLE LEISURE LTD,A00136,10,2013
Allerdale Borough Council,12101,Premises,Corporate Property,External Maintenance & Decoration,12/02/2014,42805,"2,050.00",SHAUN BELL ELECTRICAL LTD,C00140,10,2013
Allerdale Borough Council,12302,Premises,Carnegie Theatre,Building Cleaning,12/02/2014,42806,67.52,G & M SUPPLIES,A00033,10,2013
Allerdale Borough Council,15512,Supplies & Services,Animal Welfare,Kennelling,,42807,"2,641.00",WHINMILL FARM CANINE CENTRE,A00117,10,2013
Allerdale Borough Council,16101,Supplies & Services,Planning and Development,Statutory Notices,12/02/2014,42808,194.96,CUMBRIA CC - 3C STUDIO,A00070,10,2013
Allerdale Borough Council,16150,Supplies & Services,Solway Coast AONB Core Funding,General Promotions,,42809,500.00,WESTLAKES RESEARCH LTD,A01955,10,2013
Allerdale Borough Council,99902,Suspense Acc,Other Income Suspense Account,Suspense - Income Not Yet Identified,12/02/2014,42810,169.00,FLINT BISHOP LLP,M00394,10,2013
Allerdale Borough Council,16150,Supplies & Services,Solway Wetlands Project,General Promotions,12/02/2014,42811,110.00,Redacted information - included personal information ,M00203,10,2013
Allerdale Borough Council,70104,VAT,Input VAT,VAT - 20%,12/02/2014,42812,4.00,ROSSENDALES LTD,A00964,10,2013
Allerdale Borough Council,70104,VAT,Input VAT,VAT - 20%,12/02/2014,42813,118.17,ROSSENDALES LTD,A00964,10,2013
Allerdale Borough Council,70104,VAT,Input VAT,VAT - 20%,12/02/2014,42814,60.88,ROSSENDALES LTD,A00964,10,2013
Allerdale Borough Council,70104,VAT,Input VAT,VAT - 20%,12/02/2014,42815,2.00,ROSSENDALES LTD,A00964,10,2013
Allerdale Borough Council,70104,VAT,Input VAT,VAT - 20%,12/02/2014,42816,2.00,ROSSENDALES LTD,A00964,10,2013
Allerdale Borough Council,70104,VAT,Input VAT,VAT - 20%,12/02/2014,42817,81.30,ROSSENDALES LTD,A00964,10,2013
Allerdale Borough Council,70104,VAT,Input VAT,VAT - 20%,12/02/2014,42818,169.56,ROSSENDALES LTD,A00964,10,2013
Allerdale Borough Council,70104,VAT,Input VAT,VAT - 20%,12/02/2014,42819,4.58,ROSSENDALES LTD,A00964,10,2013
Allerdale Borough Council,70104,VAT,Input VAT,VAT - 20%,12/02/2014,42820,4.42,ROSSENDALES LTD,A00964,10,2013
Allerdale Borough Council,70104,VAT,Input VAT,VAT - 20%,12/02/2014,42821,2.00,ROSSENDALES LTD,A00964,10,2013
Allerdale Borough Council,70104,VAT,Input VAT,VAT - 20%,12/02/2014,42822,253.00,ROSSENDALES LTD,A00964,10,2013
Allerdale Borough Council,70104,VAT,Input VAT,VAT - 20%,12/02/2014,42823,131.42,JACOBS (BAILIFFS),A00495,10,2013
Allerdale Borough Council,14202,,Electoral Registration,Hire Car and petrol,,42824,65.86,ENTERPRISE RENT A CAR,A01367,10,2013
Allerdale Borough Council,15501,Supplies & Services,Planning and Development,Consultants Fees,12/02/2014,42825,460.50,CAPITA (TREE/HEDGEROWS),A00683,10,2013
Allerdale Borough Council,16150,Supplies & Services,Anti-poverty,General Promotions,12/02/2014,42826,25.00,FIRPRESS PRINTERS,A00063,10,2013
Allerdale Borough Council,10401,Employee Costs,Public Convenience Cleaning,Agency Staff Costs,,42827,172.38,COCKERMOUTH TOWN COUNCIL,A00586,10,2013
Allerdale Borough Council,10401,Employee Costs,Public Convenience Cleaning,Agency Staff Costs,,42828,20.81,COCKERMOUTH TOWN COUNCIL,A00586,10,2013
Allerdale Borough Council,10401,Employee Costs,Communications and Marketing,Agency Staff Costs,12/02/2014,42829,"1,712.50",ELSWORTH COMMUNICATIONS,A01869,10,2013
Allerdale Borough Council,15405,Supplies & Services,Corporate Improvement Team,Use of External Printers,12/02/2014,42830,143.00,FIRPRESS PRINTERS,A00063,10,2013
Allerdale Borough Council,15550,Supplies & Services,Recycling,General-Service Related Fees,12/02/2014,42831,456.01,SCOTTS HAULAGE,A00266,10,2013
Allerdale Borough Council,15550,Supplies & Services,Recycling,General-Service Related Fees,12/02/2014,42832,"1,828.07",SCOTTS HAULAGE,A00266,10,2013
Allerdale Borough Council,20100,Third Party Payments,Community Safety,Budget-Partnership Services,12/02/2014,42833,"3,000.00",BE YOUR BEST FOUNDATION,M00393,10,2013
Allerdale Borough Council,20100,Third Party Payments,Community Safety,Budget-Partnership Services,12/02/2014,42834,"7,404.00",CASS,M00392,10,2013
Allerdale Borough Council,16102,Supplies & Services,Town Centre Management,Regeneration Initiatives,12/02/2014,42835,200.00,WIGTON TOWN COUNCIL,X00099,10,2013
Allerdale Borough Council,16350,Supplies & Services,Homelessness,Miscellaneous Expenses,12/02/2014,42836,66.50,ALLERDALE BOROUGH COUNCIL,X00034,10,2013
Allerdale Borough Council,15506,Supplies & Services,Corporate Improvement Team,Professional Services,12/02/2014,42837,22.95,LANGUAGE LINE SERVICES,A00018,10,2013
Allerdale Borough Council,20110,Third Party Payments,Trade Waste,Other Local Authorities,,42838,"67,090.50",CUMBRIA COUNTY COUNCIL,A01124,10,2013
Allerdale Borough Council,10601,Employee Costs,Legal Services,External Courses & Seminar Fees,,42839,118.00,ASSOCIATION OF ELECTORAL ADMIN,A00189,10,2013
Allerdale Borough Council,10100,Employee Costs,Environmental Services Pay Group,Budget-Salaries,12/02/2014,42840,890.00,ISS WATERERS LANDSCAPE,C00044,10,2013
Allerdale Borough Council,15401,Supplies & Services,Document Management Pay Group,General Stationery,,42841,264.99,INSIGHT DIRECT (UK) LTD,A00054,10,2013
Allerdale Borough Council,15811,Supplies & Services,Shared IT Services,Software Maintenance,12/02/2014,42842,"1,499.88",SAGE (UK) LTD,A01911,10,2013
Allerdale Borough Council,12303,Premises,Carnegie Theatre,Window Cleaning,12/02/2014,42843,39.14,J A LEE WINDOWS,A00051,10,2013
Allerdale Borough Council,15505,Supplies & Services,Legal Services,Licences,12/02/2014,42844,460.00,Redacted information - included personal information ,M00395,10,2013
Allerdale Borough Council,15101,Supplies & Services,Homelessness,Equipment Costs,12/02/2014,42846,40.00,CUMBRIA RECYCLING LTD,A00671,10,2013
Allerdale Borough Council,15501,Supplies & Services,Housing Strategic Function,Consultants Fees,12/02/2014,42847,712.76,CUMBRIA CC,A00066,10,2013
Allerdale Borough Council,15501,Supplies & Services,Homelessness,Consultants Fees,,42848,58.80,DERWENT HOUSE SURGERY,A01105,10,2013
Allerdale Borough Council,15501,Supplies & Services,Homelessness,Consultants Fees,,42849,25.00,CASTLEGATE SURGERY,A01007,10,2013
Allerdale Borough Council,15501,Supplies & Services,Environmental Protection,Consultants Fees,,42850,682.50,OSBORNE RICHARDSON,A00206,10,2013
Allerdale Borough Council,16301,Supplies & Services,KMAG Enhancement Activity,Reimbursement,12/02/2014,42851,"3,879.53",KESWICK MUSEUM & ART GALLERY,A00337,10,2013
Allerdale Borough Council,14202,,Electoral Registration,Hire Car and petrol,,42852,56.95,ENTERPRISE RENT A CAR,A01367,10,2013
Allerdale Borough Council,15202,Supplies & Services,Carnegie Theatre,Bar Provision,12/02/2014,42853,339.35,CLASSIC DRINKS LIMITED,A00413,10,2013
Allerdale Borough Council,32101,Income,Carnegie Theatre,Bar Sales Income,12/02/2014,42854,58.68,CLASSIC DRINKS LIMITED,A00413,10,2013
Allerdale Borough Council,15505,Supplies & Services,Communications and Marketing,Licences,,42855,529.00,THE COPYRIGHT LICENSING,A00387,10,2013
Allerdale Borough Council,15505,Supplies & Services,Communications and Marketing,Licences,,42856,79.66,THE COPYRIGHT LICENSING,A00387,10,2013
Allerdale Borough Council,15506,Supplies & Services,Communications and Marketing,Professional Services,12/02/2014,42857,"1,415.00",LAKES PR LIMITED,A01912,10,2013
Allerdale Borough Council,10401,Employee Costs,Licensing Pay Group,Agency Staff Costs,12/02/2014,42858,399.60,ADECCO RECRUITMENT,A00188,10,2013
Allerdale Borough Council,15507,Supplies & Services,Land Charges Service,Searches,12/02/2014,42859,"1,160.00",LAKE DISTRICT NATIONAL PARK AUTHORITY,A00415,10,2013
Allerdale Borough Council,15507,Supplies & Services,Land Charges Service,Searches,12/02/2014,42860,"1,652.80",CUMBRIA CC - GENERAL,A00066,10,2013
Allerdale Borough Council,10401,Employee Costs,Licensing Pay Group,Agency Staff Costs,12/02/2014,42861,156.60,ADECCO RECRUITMENT,A00188,10,2013
Allerdale Borough Council,10401,Employee Costs,Licensing Pay Group,Agency Staff Costs,12/02/2014,42862,318.60,ADECCO RECRUITMENT,A00188,10,2013
Allerdale Borough Council,10401,Employee Costs,Licensing Pay Group,Agency Staff Costs,12/02/2014,42863,399.60,ADECCO RECRUITMENT,A00188,10,2013
Allerdale Borough Council,12403,Premises,Homelessness,Gas,,42864,64.00,MEPOS LIMITED,A01286,10,2013
Allerdale Borough Council,15811,Supplies & Services,Shared IT Services,Software Maintenance,,42865,130.00,SAGE (UK) LTD,A01911,10,2013
Allerdale Borough Council,15514,Supplies & Services,Rugby World Cup,Public Entertainment,12/02/2014,42866,100.00,WORKINGTON PLAYGOERS,M00028,10,2013
Allerdale Borough Council,54105,Capital Expenditure,Disabled Facilities Grants,Grants  Private Individuals (Capital),12/02/2014,42867,"2,206.55",Redacted information - included personal information ,X00115,10,2013
Allerdale Borough Council,54105,Capital Expenditure,Disabled Facilities Grants,Grants  Private Individuals (Capital),12/02/2014,42868,"2,940.00",TOP NOTCH CONTRACTORS LTD,X00165,10,2013
Allerdale Borough Council,15101,Supplies & Services,Public Convenience Cleaning,Equipment Costs,,42869,50.40,WF HYGIENE & CLEANING SUPPLIES,A01794,10,2013
Allerdale Borough Council,15101,Supplies & Services,Public Convenience Cleaning,Equipment Costs,,42870,71.36,WF HYGIENE & CLEANING SUPPLIES,A01794,10,2013
Allerdale Borough Council,20150,Third Party Payments,Footways,General Partnership Service Fees,,42871,926.00,ELECTRICITY NORTH WEST LTD,A00471,10,2013
Allerdale Borough Council,10401,Employee Costs,Asset Mgt & Capital Accounting System,Agency Staff Costs,,42872,705.00,MACDONALD & COMPANY FREELANCE LTD,A01947,10,2013
Allerdale Borough Council,15101,Supplies & Services,Public Convenience Cleaning,Equipment Costs,,42873,745.54,INSTOCK (CHANDLERS),A00050,10,2013
Allerdale Borough Council,12303,Premises,Corporate Property,Window Cleaning,,42874,131.78,J A LEE WINDOWS,A00051,10,2013
Allerdale Borough Council,10601,Employee Costs,Training,External Courses & Seminar Fees,,42875,75.00,COLLECTIVE ENTERPRISES LTD T/A FOUNDATIONS,A01950,10,2013
Allerdale Borough Council,20102,Third Party Payments,Recycling,Horticulture (Obsolete),,42876,455.00,THOMPSONS PLANT HIRE LTD,A00262,10,2013
Allerdale Borough Council,20102,Third Party Payments,Recycling,Horticulture (Obsolete),,42877,74.00,THOMPSONS PLANT HIRE LTD,A00262,10,2013
Allerdale Borough Council,15501,Supplies & Services,Local Development Framework,Consultants Fees,,42878,"4,438.50",PROGRAMME OFFICER SOLUTIONS LTD,A01852,10,2013
Allerdale Borough Council,73102,Holding and Control Accounts,Busy Bees Childcare Scheme,Holding Accounts General - Expenditure,,42879,926.00,COMPUTERSHARE VOUCHER SERVICES,A00991,10,2013
Allerdale Borough Council,73102,Holding and Control Accounts,Busy Bees Childcare Scheme,Holding Accounts General - Expenditure,,42880,50.93,COMPUTERSHARE VOUCHER SERVICES,A00991,10,2013
Allerdale Borough Council,15550,Supplies & Services,Licensing Service,General-Service Related Fees,,42881,220.00,DISCLOSURE & BARRING SERVICE,X00041,10,2013
Allerdale Borough Council,54105,Capital Expenditure,Disabled Facilities Grants,Grants  Private Individuals (Capital),,42882,797.67,THYSSEN KRUPP ENCASA/LIFTABLE,X00105,10,2013
Allerdale Borough Council,10605,Employee Costs,Training,Travel,,42883,86.48,ENTERPRISE RENT A CAR,A01367,10,2013
Allerdale Borough Council,15302,Supplies & Services,Environmental Health Pay Group,Protective Clothing,,42884,30.71,ARCO LIMITED - CARLISLE,A01448,10,2013
Allerdale Borough Council,12306,Premises,Corporate Property,Legionella Inspections and Services,,42885,152.32,RENTOKIL INITIAL UK LTD - WATERSAFE,A01790,10,2013
Allerdale Borough Council,15510,Supplies & Services,Confidential Waste,Disposal of Waste,,42886,128.50,PW CONF BUS SERVICES,A01846,10,2013
Allerdale Borough Council,15517,Supplies & Services,Shared Revs & Bens,Shared Service Contribution,,42887,"98,816.67",CARLISLE CITY COUNCIL,A00161,10,2013
Allerdale Borough Council,15602,Supplies & Services,Electoral Registration,Business Reply Licences,,42888,558.64,ROYAL MAIL LETTERS,X00021,10,2013
Allerdale Borough Council,15517,Supplies & Services,Shared Revs & Bens,Shared Service Contribution,,42889,"98,816.67",CARLISLE CITY COUNCIL,A00161,10,2013
Allerdale Borough Council,12408,Premises,Public Convenience Cleaning,Water & Sewage,,42890,82.65,UNITED UTILITIES,X00011,10,2013
Allerdale Borough Council,12408,Premises,Other Land & Buildings,Water & Sewage,,42891,26.50,UNITED UTILITIES ,X00011,10,2013
Allerdale Borough Council,12408,Premises,Other Land & Buildings,Water & Sewage,,42892,15.73,UNITED UTILITIES,X00011,10,2013
Allerdale Borough Council,12408,Premises,Corporate Property,Water & Sewage,,42893,424.75,BRITISH GAS,X00006,10,2013
Allerdale Borough Council,12403,Premises,Corporate Property,Gas,,42894,559.56,BRITISH GAS,X00006,10,2013
Allerdale Borough Council,12403,Premises,Corporate Property,Gas,,42895,377.62,BRITISH GAS,X00006,10,2013
Allerdale Borough Council,12403,Premises,Corporate Property,Gas,,42896,727.65,BRITISH GAS,X00006,10,2013
Allerdale Borough Council,12403,Premises,Corporate Property,Gas,,42897,80.99,BRITISH GAS,X00006,10,2013
Allerdale Borough Council,12403,Premises,Corporate Property,Gas,,42898,139.13,BRITISH GAS,X00006,10,2013
Allerdale Borough Council,12402,Premises,Corporate Property,Electricity,,42899,237.31,N POWER,X00015,10,2013
Allerdale Borough Council,15812,Supplies & Services,Shared IT Services,Software Development,,42900,244.11,HSBC CARD SERVICES,X00000,10,2013
Allerdale Borough Council,16350,Supplies & Services,Homelessness,Miscellaneous Expenses,,42901,415.27,YOUR HOUSING GROUP,M00396,10,2013
Allerdale Borough Council,73102,Holding and Control Accounts,Capital Project Retentions,Holding Accounts General - Expenditure,,42902,"25,455.30",ROLAND HILL (PARSONBY) LTD,C00010,10,2013
Allerdale Borough Council,15302,Supplies & Services,Public Convenience Cleaning,Protective Clothing,,42903,100.27,ARCO LIMITED - CARLISLE,A01448,10,2013
Allerdale Borough Council,15508,Supplies & Services,Shared IT Services,Subscriptions,,42904,270.00,CIVICA UK LIMITED,A00006,10,2013
Allerdale Borough Council,10202,Employee Costs,Human Resources Pay Group,Medical Screening,,42905,424.36,WELLWORK LTD,A00029,10,2013
Allerdale Borough Council,75103,Holding and Control Accounts,Payroll Suspense Account,PAYROLL January 14 Travel & Subsistence  ,,,"12,003.88",INLAND REVENUE,X00038,8,2013
